Workbook

Sheet A1.1 Distributor Information
C3: ="Name of LDC: " &D8 -> Name of LDC: EPCOR Natural Gas Limited Partnership
C4: ="OEB Application Number: " & D9 -> OEB Application Number: EB-2019-0264 Exhibit A - 2020 Custom Incentive Application
C6: Distributor Information
C8: Distributor Name | D8: EPCOR Natural Gas Limited Partnership
C9: OEB Application Number | D9: EB-2019-0264 Exhibit A - 2020 Custom Incentive Application
C12: =MID(CELL("filename",A1),FIND("]",CELL("filename",A1))+1,255) -> A1.1 Distributor Information

Sheet B1.1 Current Distribution Rates
C2: ='A1.1 Distributor Information'!C3 -> Name of LDC: EPCOR Natural Gas Limited Partnership
C3: ='A1.1 Distributor Information'!C4 -> OEB Application Number: EB-2019-0264 Exhibit A - 2020 Custom Incentive Application
C5: Current Distribution Tariff Sheet Rates
E7: Fixed | G7: Delivery Charge | J7: Delivery Charge
C8: Rate Class | E8: Monthly Base | F8: =OneDollar -> Bill 32 Rate | G8: Tier 1 | H8: Tier 2 | I8: Tier 3 | J8: Contract Demand | K8: Gas Supply | L8: Upstream Recovery Charge | M8: Transportation & Storage Charge | N8: Transportation Charge From Dawn | O8: Transportation Charge From Kirkwall | P8: Transportation Charge From Parkway | Q8: Federal Carbon Charge
E9: $/month | F9: $ / month | G9: ₵ / m3 | H9: ₵ / m3 | I9: ₵ / m3 | J9: ₵ /contracted m3 | K9: ₵ / m3 | L9: (A) | M9: ₵ / m3 | N9: ₵ /contracted m3 | O9: ₵ /contracted m3 | P9: ₵ /contracted m3 | Q9: ₵ / m3
C10: Rate 1 | D10: General Firm Service | E10: 25 | F10: 1 | G10: 26.79480281 | H10: 26.26699125 | I10: 25.49110826 | K10: 11.5114 | L10: 1.474 | M10: 2.6982 | Q10: 3.91
C11: Rate 6 | D11: Large Volume General Firm Service | E11: 102 | F11: 1 | G11: 24.7189 | H11: 22.247 | I11: 21.1346 | K11: 11.5114 | L11: 2.92 | M11: 5.6413 | Q11: 3.91
C12: Rate 11 | D12: Large Volume Seasonal Service | E12: 204 | F12: 1 | G12: 15.3546 | H12: 15.3546 | I12: 15.3546 | K12: 11.5114 | L12: 0.0352 | M12: 1.8166 | Q12: 3.91
C13: Rate 16 | D13: Contracted Firm Service | E13: 1500 | F13: 1 | J13: 102.3139 | L13: 14.2434 | N13: 18.2999 | O13: 11.848 | P13: 11.848 | Q13: 3.91
C14: (A) Rates 1, 6, and 11 all charged on cents / m3 basis. Rate 16 billed on cents / m3 of contracted demand basis
C18: Name for $1 Charge: | D18: Bill 32 Rate

Sheet B1.2 Billing Determinants
C2: ='A1.1 Distributor Information'!C3 -> Name of LDC: EPCOR Natural Gas Limited Partnership
C3: ='A1.1 Distributor Information'!C4 -> OEB Application Number: EB-2019-0264 Exhibit A - 2020 Custom Incentive Application
C5: Billing Determinants
E7: Fixed | F7: Delivery Charge | I7: Delivery Charge
C8: Rate Class | E8: Monthly Base | F8: Tier 1 | G8: Tier 2 | H8: Tier 3 | I8: Contract Demand | J8: Gas Supply
C9: Rate 1 | D9: General Firm Service | E9: 1753 | F9: 1774284.216 | G9: 2138384.704 | H9: 101472.5796 | I9: 0 | J9: 4014141.5
C10: Rate 6 | D10: Large Volume General Firm Service | E10: 24 | F10: 245078.5278 | G10: 526295.0583 | H10: 115884.777 | I10: 0 | J10: 887258.3631
C11: Rate 11 | D11: Large Volume Seasonal Service | E11: 1 | F11: 0 | G11: 0 | H11: 338331.6191 | I11: 0 | J11: 338331.6191
C12: Rate 16 | D12: Contracted Firm Service | E12: 2 | F12: 0 | G12: 0 | H12: 0 | I12: 89716 | J12: 0

Sheet B1.3 Current Rev From Rates
C2: ='A1.1 Distributor Information'!C3 -> Name of LDC: EPCOR Natural Gas Limited Partnership
C3: ='A1.1 Distributor Information'!C4 -> OEB Application Number: EB-2019-0264 Exhibit A - 2020 Custom Incentive Application
C6: Forecasted Revenue from Current Rates
C8: Months / Year | D8: 12
E11: Fixed Monthly | G11: Delivery Charge | J11: Delivery Charge
C12: Rate Class | E12: Base | F12: =OneDollar -> Bill 32 Rate | G12: Tier 1 | H12: Tier 2 | I12: Tier 3 | J12: Contract Demand | K12: Gas Supply | L12: Upstream Recovery Charge | M12: Transportation & Storage Charge | N12: Federal Carbon Charge | O12: Total
M13: (A)
C14: Rate 1 | D14: General Firm Service | E14: ='B1.2 Billing Determinants'!E9*'B1.1 Current Distribution Rates'!E10*$D$8 -> 525900 | F14: ='B1.1 Current Distribution Rates'!F10*'B1.2 Billing Determinants'!E9*$D$8 -> 21036 | G14: ='B1.2 Billing Determinants'!F9*'B1.1 Current Distribution Rates'!G10/100 -> 475415.957 | H14: ='B1.2 Billing Determinants'!G9*'B1.1 Current Distribution Rates'!H10/100 -> 561689.3233 | I14: ='B1.2 Billing Determinants'!H9*'B1.1 Current Distribution Rates'!I10/100 -> 25866.48511 | J14: ='B1.2 Billing Determinants'!I9*'B1.1 Current Distribution Rates'!J10/100*$D$8 -> 0 | K14: ='B1.2 Billing Determinants'!J9*'B1.1 Current Distribution Rates'!K10/100 -> 462083.8846 | L14: ='B1.1 Current Distribution Rates'!L10*'B1.2 Billing Determinants'!$J9/100 -> 59168.44571 | M14: ='B1.1 Current Distribution Rates'!M10*'B1.2 Billing Determinants'!$J9/100 -> 108309.566 | N14: ='B1.1 Current Distribution Rates'!Q10*'B1.2 Billing Determinants'!J9/100 -> 156952.9327 | O14: =SUM(E14:N14) -> 2396422.594
C15: Rate 6 | D15: Large Volume General Firm Service | E15: ='B1.2 Billing Determinants'!E10*'B1.1 Current Distribution Rates'!E11*$D$8 -> 29376 | F15: ='B1.1 Current Distribution Rates'!F11*'B1.2 Billing Determinants'!E10*$D$8 -> 288 | G15: ='B1.2 Billing Determinants'!F10*'B1.1 Current Distribution Rates'!G11/100 -> 60580.71621 | H15: ='B1.2 Billing Determinants'!G10*'B1.1 Current Distribution Rates'!H11/100 -> 117084.8616 | I15: ='B1.2 Billing Determinants'!H10*'B1.1 Current Distribution Rates'!I11/100 -> 24491.78407 | J15: ='B1.2 Billing Determinants'!I10*'B1.1 Current Distribution Rates'!J11/100*$D$8 -> 0 | K15: ='B1.2 Billing Determinants'!J10*'B1.1 Current Distribution Rates'!K11/100 -> 102135.8592 | L15: ='B1.1 Current Distribution Rates'!L11*'B1.2 Billing Determinants'!$J10/100 -> 25907.9442 | M15: ='B1.1 Current Distribution Rates'!M11*'B1.2 Billing Determinants'!$J10/100 -> 50052.90604 | N15: ='B1.1 Current Distribution Rates'!Q11*'B1.2 Billing Determinants'!J10/100 -> 34691.802 | O15: =SUM(E15:N15) -> 444609.8734
C16: Rate 11 | D16: Large Volume Seasonal Service | E16: ='B1.2 Billing Determinants'!E11*'B1.1 Current Distribution Rates'!E12*$D$8 -> 2448 | F16: ='B1.1 Current Distribution Rates'!F12*'B1.2 Billing Determinants'!E11*$D$8 -> 12 | G16: ='B1.2 Billing Determinants'!F11*'B1.1 Current Distribution Rates'!G12/100 -> 0 | H16: ='B1.2 Billing Determinants'!G11*'B1.1 Current Distribution Rates'!H12/100 -> 0 | I16: ='B1.2 Billing Determinants'!H11*'B1.1 Current Distribution Rates'!I12/100 -> 51949.46679 | J16: ='B1.2 Billing Determinants'!I11*'B1.1 Current Distribution Rates'!J12/100*$D$8 -> 0 | K16: ='B1.2 Billing Determinants'!J11*'B1.1 Current Distribution Rates'!K12/100 -> 38946.706 | L16: ='B1.1 Current Distribution Rates'!L12*'B1.2 Billing Determinants'!$J11/100 -> 119.0927299 | M16: ='B1.1 Current Distribution Rates'!M12*'B1.2 Billing Determinants'!$J11/100 -> 6146.132193 | N16: ='B1.1 Current Distribution Rates'!Q12*'B1.2 Billing Determinants'!J11/100 -> 13228.76631 | O16: =SUM(E16:N16) -> 112850.164
C17: Rate 16 | D17: Contracted Firm Service | E17: ='B1.2 Billing Determinants'!E12*'B1.1 Current Distribution Rates'!E13*$D$8 -> 36000 | F17: ='B1.1 Current Distribution Rates'!F13*'B1.2 Billing Determinants'!E12*$D$8 -> 24 | G17: ='B1.2 Billing Determinants'!F12*'B1.1 Current Distribution Rates'!G13/100 -> 0 | H17: ='B1.2 Billing Determinants'!G12*'B1.1 Current Distribution Rates'!H13/100 -> 0 | I17: ='B1.2 Billing Determinants'!H12*'B1.1 Current Distribution Rates'!I13/100 -> 0 | J17: ='B1.2 Billing Determinants'!I12*'B1.1 Current Distribution Rates'!J13/100*$D$8 -> 1101503.262 | K17: ='B1.2 Billing Determinants'!J12*'B1.1 Current Distribution Rates'!K13/100 -> 0 | L17: ='B1.1 Current Distribution Rates'!L13*'B1.2 Billing Determinants'!$I12*$D$8/100 -> 153343.3049 | M17: ='B1.1 Current Distribution Rates'!N13*'B1.2 Billing Determinants'!$I12/100*$D$8 -> 197015.2594 | N17: ='B1.1 Current Distribution Rates'!Q13*'B1.2 Billing Determinants'!I12/100*D8 -> 42094.7472 | O17: =SUM(E17:N17) -> 1529980.574
C18: Total Revenue | E18: =SUM(E14:E17) -> 593724 | F18: 21360 | G18: 535996.6732 | H18: 678774.1849 | I18: 102307.736 | J18: 1101503.262 | K18: 603166.4498 | L18: 238538.7876 | M18: 361523.8636 | N18: 246968.2482 | O18: 4483863.206
C19: (A) Transportation & Storage for Rates 1, 6, and 11. Transportation only for Rate 16.

Sheet C1.1 Current Rate Riders
C2: ='A1.1 Distributor Information'!C3 -> Name of LDC: EPCOR Natural Gas Limited Partnership
C3: ='A1.1 Distributor Information'!C4 -> OEB Application Number: EB-2019-0264 Exhibit A - 2020 Custom Incentive Application
C5: Current Rate Riders
C7: Description: | E7: Delay in Revenue Recovery Rate Rider
C8: Effective Until: | E8: Dec 31, 2028
C10: Rate 1 | General Firm Service | D10: cents / m3 volume | E10: 1.633 | F10: $/m3
C11: Rate 6 | Large Volume General Firm Service | D11: cents / m3 volume | E11: 0.909 | F11: $/m3
C12: Rate 11 | Large Volume Seasonal Service | D12: cents / m3 volume | E12: 0.5524 | F12: $/m3
C13: Rate 16 | Contracted Firm Service | D13: cents / contracted demand / month | E13: 0.0601 | F13: $/contracted demand m3

Sheet C2.1 Regulatory Cost Adjustment (hidden)
C1: ='A1.1 Distributor Information'!#REF! -> 
C2: ='A1.1 Distributor Information'!C3 -> Name of LDC: EPCOR Natural Gas Limited Partnership
C3: ='A1.1 Distributor Information'!C4 -> OEB Application Number: EB-2019-0264 Exhibit A - 2020 Custom Incentive Application
C8: Regulatory Cost Adjustment
C9: Annual Regulatory Adjustment
C10: 22800 | D10: for 3 years | E10: =C10*3 -> 68400 | F10: Total to be collected
C11: A | E11: B= A * 3
C13: =E10 -> 68400 | D13: recovered over 33 months | E13: =C13/33 -> 2072.727273 | F13: per month
C14: B | E14: C = B / 33
C16: =E13 -> 2072.727273 | D16: Monthly charge annualized 12 months | E16: =C16*12 -> 24872.72727 | F16: Adjusted Regulatory Adjustment Value
C17: C | E17: D = C * 12
C19: Proposed recovery
C20: =E16 -> 24872.72727 | D20: Recovered over 9 months | E20: =C20/12*9 -> 18654.54545 | F20: Recovered in 2011/2012
C21: =C20 -> 24872.72727 | D21: Recovered over 12 months | E21: =C21 -> 24872.72727 | F21: Recovered in 2012/2013
C22: =C21 -> 24872.72727 | D22: Recovered over 12 months | E22: =C22 -> 24872.72727 | F22: Recovered in 2013/2014
E23: =SUM(E20:E22) -> 68400

Sheet C2.2 Alloc Reg Cost Adj (hidden)
C2: ='A1.1 Distributor Information'!C3 -> Name of LDC: EPCOR Natural Gas Limited Partnership
C3: ='A1.1 Distributor Information'!C4 -> OEB Application Number: EB-2019-0264 Exhibit A - 2020 Custom Incentive Application
C10: Allocation of Regualtory Cost Adjustment
C15: Rate Group | E15: Revenue By Rate Class | G15: Proportionate Revenue | I15: Regulatory Cost Adjustment | K15: Number of Customers | M15: Number of Months | O15: Fixed Rate Adjustment
C16: RATE 1 - General Service Rate | E16: =SUM('B1.3 Current Rev From Rates'!#REF!) ->  | G16: =E16/$E$22 ->  | I16: =$I$22*G16 ->  | K16: =SUM('B1.2 Billing Determinants'!#REF!) ->  | M16: 12 | O16: =I16/K16/M16 -> 
C17: RATE 2 - Seasonal Service | E17: =SUM('B1.3 Current Rev From Rates'!#REF!) ->  | K17: ='B1.2 Billing Determinants'!#REF! ->  | M17: 12
C18: RATE 3 - Special Large Volume Contract Rate | E18: ='B1.3 Current Rev From Rates'!#REF! ->  | K18: ='B1.2 Billing Determinants'!#REF! ->  | M18: 12
C19: RATE 4 - General Service Peaking | E19: =SUM('B1.3 Current Rev From Rates'!#REF!) ->  | K19: ='B1.2 Billing Determinants'!#REF! ->  | M19: 12
C20: RATE 5 - Interruptible Peaking Contract Rate | E20: ='B1.3 Current Rev From Rates'!#REF! ->  | K20: ='B1.2 Billing Determinants'!#REF! ->  | M20: 12
C21: RATE 6 - Integrated Grain Processors Co-Operative Aylmer Ethanol Production Facility | E21: ='B1.3 Current Rev From Rates'!#REF! ->  | K21: ='B1.2 Billing Determinants'!#REF! ->  | M21: 12
E22: =SUM(E16:E21) ->  | G22: =SUM(G16:G21) ->  | I22: ='C2.1 Regulatory Cost Adjustment'!E16 -> 24872.72727 | K22: =SUM(K16:K21) -> 
C26: =MID(CELL("filename",A1),FIND("]",CELL("filename",A1))+1,255) -> C2.2 Alloc Reg Cost Adj

Sheet C2.3 Adj Monthly Service Chg (hidden)
C1: ='A1.1 Distributor Information'!#REF! -> 
C2: ='A1.1 Distributor Information'!C3 -> Name of LDC: EPCOR Natural Gas Limited Partnership
C3: ='A1.1 Distributor Information'!C4 -> OEB Application Number: EB-2019-0264 Exhibit A - 2020 Custom Incentive Application
C10: Adjustment to Monthly Service Charge
C15: Rate Group | E15: Current Monthly Service Charge | G15: Reulatory Cost Adjustment | I15: Adjusted Monthly Service Charge
C16: RATE 1 - General Service Rate - Residential | E16: 13.5 | G16: 0 | I16: =E16+G16 -> 13.5
C17: RATE 1 - General Service Rate - Commercial | E17: 13.5 | G17: 0 | I17: =E17+G17 -> 13.5
C18: RATE 1 - General Service Rate - Industrial | E18: 13.5 | G18: 0 | I18: 13.5
C19: RATE 2 - Seasonal Service - Apr to Oct | E19: 15 | G19: 0 | I19: 15
C20: RATE 2 - Seasonal Service - Nov to Mar | E20: 15 | G20: 0 | I20: 15
C21: RATE 3 - Special Large Volume Contract Rate | E21: 150 | G21: 0 | I21: 150
C22: RATE 4 - General Service Peaking - Apr to Dec | E22: 15 | G22: 0 | I22: 15
C23: RATE 4 - General Service Peaking - Jan to Mar | E23: 15 | G23: 0 | I23: 15
C24: RATE 5 - Interruptible Peaking Contract Rate | E24: 150 | G24: 0 | I24: 150
C25: RATE 6 - Integrated Grain Processors Co-Operative Aylmer Ethanol Production Facility | E25: 150 | G25: 0 | I25: 150
C28: 1 Placeholder rate for average application

Sheet D1.1 Rate 1 Adjustment
C2: ='A1.1 Distributor Information'!C3 -> Name of LDC: EPCOR Natural Gas Limited Partnership
C3: ='A1.1 Distributor Information'!C4 -> OEB Application Number: EB-2019-0264 Exhibit A - 2020 Custom Incentive Application
C5: Rate 1 Incentive Rate Adjustment
C6: =MID(CELL("filename",A1),FIND("]",CELL("filename",A1))+1,255) -> D1.1 Rate 1 Adjustment
C8: Rate 1
C10: GDP-IPI
C11: Less Productivity
C12: Less Stretch Factor
C13: Incentive Rate Adjustment | E13: 0.015
C14: Months / Year | E14: 12
D16: Unit | E16: Current Rate | F16: Price Cap | G16: Adjusted Rates | H16: Billing Determinants | I16: Revenue
C17: Monthly Base | D17: $/month | E17: ='B1.1 Current Distribution Rates'!E10 -> 25 | F17: =$E$13 -> 0.015 | G17: =E17*(1+F17) -> 25.375 | H17: =INDEX('B1.2 Billing Determinants'!$E$9:$J$12,MATCH($C$8,'B1.2 Billing Determinants'!$C$9:$C$12,0),MATCH(C17,'B1.2 Billing Determinants'!$E$8:$J$8,0)) -> 1753 | I17: =G17*H17*$E$14 -> 533788.5
C18: =OneDollar -> Bill 32 Rate | D18: $/month | E18: ='B1.1 Current Distribution Rates'!F10 -> 1 | F18: 0 | G18: =E18*(1+F18) -> 1 | H18: =H17 -> 1753 | I18: =G18*H18*$E$14 -> 21036
C19: Tier 1 | D19: cents / m3 | E19: ='B1.1 Current Distribution Rates'!G10 -> 26.79480281 | F19: =$E$13 -> 0.015 | G19: =E19*(1+F19) -> 27.19672486 | H19: =INDEX('B1.2 Billing Determinants'!$E$9:$J$12,MATCH($C$8,'B1.2 Billing Determinants'!$C$9:$C$12,0),MATCH(C19,'B1.2 Billing Determinants'!$E$8:$J$8,0)) -> 1774284.216 | I19: =G19*H19/100 -> 482547.1964
C20: Tier 2 | D20: cents / m3 | E20: ='B1.1 Current Distribution Rates'!H10 -> 26.26699125 | F20: =$E$13 -> 0.015 | G20: 26.66099612 | H20: =INDEX('B1.2 Billing Determinants'!$E$9:$J$12,MATCH($C$8,'B1.2 Billing Determinants'!$C$9:$C$12,0),MATCH(C20,'B1.2 Billing Determinants'!$E$8:$J$8,0)) -> 2138384.704 | I20: =G20*H20/100 -> 570114.6631
C21: Tier 3 | D21: cents / m3 | E21: ='B1.1 Current Distribution Rates'!I10 -> 25.49110826 | F21: =$E$13 -> 0.015 | G21: 25.87347488 | H21: =INDEX('B1.2 Billing Determinants'!$E$9:$J$12,MATCH($C$8,'B1.2 Billing Determinants'!$C$9:$C$12,0),MATCH(C21,'B1.2 Billing Determinants'!$E$8:$J$8,0)) -> 101472.5796 | I21: 26254.48239
C22: Contract Demand | D22: cents / m3 | E22: ='B1.1 Current Distribution Rates'!J10 -> 0 | F22: =$E$13 -> 0.015 | G22: 0 | H22: =INDEX('B1.2 Billing Determinants'!$E$9:$J$12,MATCH($C$8,'B1.2 Billing Determinants'!$C$9:$C$12,0),MATCH(C22,'B1.2 Billing Determinants'!$E$8:$J$8,0)) -> 0 | I22: =G22*H22/100*$E$14 -> 0
C23: Gas Supply | D23: cents / m3 | E23: ='B1.1 Current Distribution Rates'!K10 -> 11.5114 | F23: 0 | G23: 11.5114 | H23: =INDEX('B1.2 Billing Determinants'!$E$9:$J$12,MATCH($C$8,'B1.2 Billing Determinants'!$C$9:$C$12,0),MATCH(C23,'B1.2 Billing Determinants'!$E$8:$J$8,0)) -> 4014141.5 | I23: 462083.8846
C24: Upstream Recovery Charge | D24: cents / m3 | E24: ='B1.1 Current Distribution Rates'!L10 -> 1.474 | F24: 0 | G24: 1.474 | H24: =H23 -> 4014141.5 | I24: 59168.44571
C25: Transportation & Storage Charge | D25: cents / m3 | E25: ='B1.1 Current Distribution Rates'!M10 -> 2.6982 | F25: 0 | G25: 2.6982 | H25: =H24 -> 4014141.5 | I25: 108309.566
C26: Federal Carbon Charge | D26: cents / m3 | E26: ='B1.1 Current Distribution Rates'!Q10 -> 3.91 | F26: 0 | G26: 3.91 | H26: =H25 -> 4014141.5 | I26: =G26*H26/100 -> 156952.9327
I27: =SUM(I17:I26) -> 2420255.671

Sheet D1.2 Rate 6 Adjustment
C2: ='A1.1 Distributor Information'!C3 -> Name of LDC: EPCOR Natural Gas Limited Partnership
C3: ='A1.1 Distributor Information'!C4 -> OEB Application Number: EB-2019-0264 Exhibit A - 2020 Custom Incentive Application
C5: Rate 6 Incentive Rate Adjustment
C6: =MID(CELL("filename",A1),FIND("]",CELL("filename",A1))+1,255) -> D1.2 Rate 6 Adjustment
C8: Rate 6
C10: GDP-IPI
C11: Less Productivity
C12: Less Stretch Factor
C13: Incentive Rate Adjustment | E13: 0.015
C14: Months / Year | E14: 12
D16: Unit | E16: Current Rate | F16: Price Cap | G16: Adjusted Rates | H16: Billing Determinants | I16: Revenue
C17: Monthly Base | D17: $/month | E17: ='B1.1 Current Distribution Rates'!E11 -> 102 | F17: =$E$13 -> 0.015 | G17: =E17*(1+F17) -> 103.53 | H17: =INDEX('B1.2 Billing Determinants'!$E$9:$J$12,MATCH($C$8,'B1.2 Billing Determinants'!$C$9:$C$12,0),MATCH(C17,'B1.2 Billing Determinants'!$E$8:$J$8,0)) -> 24 | I17: =G17*H17*12 -> 29816.64
C18: =OneDollar -> Bill 32 Rate | D18: $/month | E18: ='B1.1 Current Distribution Rates'!F11 -> 1 | F18: 0 | G18: =E18*(1+F18) -> 1 | H18: =H17 -> 24 | I18: =G18*H18*12 -> 288
C19: Tier 1 | D19: cents / m3 | E19: ='B1.1 Current Distribution Rates'!G11 -> 24.7189 | F19: =$E$13 -> 0.015 | G19: =E19*(1+F19) -> 25.0896835 | H19: =INDEX('B1.2 Billing Determinants'!$E$9:$J$12,MATCH($C$8,'B1.2 Billing Determinants'!$C$9:$C$12,0),MATCH(C19,'B1.2 Billing Determinants'!$E$8:$J$8,0)) -> 245078.5278 | I19: =G19*H19/100 -> 61489.42695
C20: Tier 2 | D20: cents / m3 | E20: ='B1.1 Current Distribution Rates'!H11 -> 22.247 | F20: =$E$13 -> 0.015 | G20: 22.580705 | H20: =INDEX('B1.2 Billing Determinants'!$E$9:$J$12,MATCH($C$8,'B1.2 Billing Determinants'!$C$9:$C$12,0),MATCH(C20,'B1.2 Billing Determinants'!$E$8:$J$8,0)) -> 526295.0583 | I20: =G20*H20/100 -> 118841.1346
C21: Tier 3 | D21: cents / m3 | E21: ='B1.1 Current Distribution Rates'!I11 -> 21.1346 | F21: =$E$13 -> 0.015 | G21: 21.451619 | H21: =INDEX('B1.2 Billing Determinants'!$E$9:$J$12,MATCH($C$8,'B1.2 Billing Determinants'!$C$9:$C$12,0),MATCH(C21,'B1.2 Billing Determinants'!$E$8:$J$8,0)) -> 115884.777 | I21: 24859.16083
C22: Contract Demand | D22: cents / m3 | E22: ='B1.1 Current Distribution Rates'!J11 -> 0 | F22: =$E$13 -> 0.015 | G22: 0 | H22: =INDEX('B1.2 Billing Determinants'!$E$9:$J$12,MATCH($C$8,'B1.2 Billing Determinants'!$C$9:$C$12,0),MATCH(C22,'B1.2 Billing Determinants'!$E$8:$J$8,0)) -> 0 | I22: =G22*H22/100*12 -> 0
C23: Gas Supply | D23: cents / m3 | E23: ='B1.1 Current Distribution Rates'!K11 -> 11.5114 | F23: 0 | G23: 11.5114 | H23: =INDEX('B1.2 Billing Determinants'!$E$9:$J$12,MATCH($C$8,'B1.2 Billing Determinants'!$C$9:$C$12,0),MATCH(C23,'B1.2 Billing Determinants'!$E$8:$J$8,0)) -> 887258.3631 | I23: 102135.8592
C24: Upstream Recovery Charge | D24: cents / m3 | E24: =INDEX('B1.1 Current Distribution Rates'!$E$10:$Q$13,MATCH($C$8,'B1.1 Current Distribution Rates'!$C$10:$C$13,0),MATCH(C24,'B1.1 Current Distribution Rates'!$E$8:$Q$8,0)) -> 2.92 | F24: 0 | G24: 2.92 | H24: =H23 -> 887258.3631 | I24: 25907.9442
C25: Transportation & Storage Charge | D25: cents / m3 | E25: =INDEX('B1.1 Current Distribution Rates'!$E$10:$Q$13,MATCH($C$8,'B1.1 Current Distribution Rates'!$C$10:$C$13,0),MATCH(C25,'B1.1 Current Distribution Rates'!$E$8:$Q$8,0)) -> 5.6413 | F25: 0 | G25: 5.6413 | H25: =H24 -> 887258.3631 | I25: 50052.90604
C26: Federal Carbon Charge | D26: cents / m3 | E26: =INDEX('B1.1 Current Distribution Rates'!$E$10:$Q$13,MATCH($C$8,'B1.1 Current Distribution Rates'!$C$10:$C$13,0),MATCH(C26,'B1.1 Current Distribution Rates'!$E$8:$Q$8,0)) -> 3.91 | F26: 0 | G26: 3.91 | H26: =H25 -> 887258.3631 | I26: 34691.802
I27: =SUM(I17:I26) -> 448082.8738

Sheet D1.3 Rate 11 Adjustment
C2: ='A1.1 Distributor Information'!C3 -> Name of LDC: EPCOR Natural Gas Limited Partnership
C3: ='A1.1 Distributor Information'!C4 -> OEB Application Number: EB-2019-0264 Exhibit A - 2020 Custom Incentive Application
C5: Rate 11 Incentive Rate Adjustment
C6: =MID(CELL("filename",A1),FIND("]",CELL("filename",A1))+1,255) -> D1.3 Rate 11 Adjustment
C8: Rate 11
C10: GDP-IPI
C11: Less Productivity
C12: Less Stretch Factor
C13: Incentive Rate Adjustment | E13: 0.015
C14: Months / Year | E14: 12
D16: Unit | E16: Current Rate | F16: Price Cap | G16: Adjusted Rates | H16: Billing Determinants | I16: Revenue
C17: Monthly Base | D17: $/month | E17: =INDEX('B1.1 Current Distribution Rates'!$E$10:$Q$13,MATCH($C$8,'B1.1 Current Distribution Rates'!$C$10:$C$13,0),MATCH(C17,'B1.1 Current Distribution Rates'!$E$8:$Q$8,0)) -> 204 | F17: =$E$13 -> 0.015 | G17: =E17*(1+F17) -> 207.06 | H17: =INDEX('B1.2 Billing Determinants'!$E$9:$J$12,MATCH($C$8,'B1.2 Billing Determinants'!$C$9:$C$12,0),MATCH(C17,'B1.2 Billing Determinants'!$E$8:$J$8,0)) -> 1 | I17: =G17*H17*12 -> 2484.72
C18: =OneDollar -> Bill 32 Rate | D18: $/month | E18: =INDEX('B1.1 Current Distribution Rates'!$E$10:$Q$13,MATCH($C$8,'B1.1 Current Distribution Rates'!$C$10:$C$13,0),MATCH(C18,'B1.1 Current Distribution Rates'!$E$8:$Q$8,0)) -> 1 | F18: 0 | G18: =E18*(1+F18) -> 1 | H18: =H17 -> 1 | I18: =G18*H18*12 -> 12
C19: Tier 1 | D19: cents / m3 | E19: =INDEX('B1.1 Current Distribution Rates'!$E$10:$Q$13,MATCH($C$8,'B1.1 Current Distribution Rates'!$C$10:$C$13,0),MATCH(C19,'B1.1 Current Distribution Rates'!$E$8:$Q$8,0)) -> 15.3546 | F19: =$E$13 -> 0.015 | G19: 15.584919 | H19: =INDEX('B1.2 Billing Determinants'!$E$9:$J$12,MATCH($C$8,'B1.2 Billing Determinants'!$C$9:$C$12,0),MATCH(C19,'B1.2 Billing Determinants'!$E$8:$J$8,0)) -> 0 | I19: =G19*H19/100 -> 0
C20: Tier 2 | D20: cents / m3 | E20: =INDEX('B1.1 Current Distribution Rates'!$E$10:$Q$13,MATCH($C$8,'B1.1 Current Distribution Rates'!$C$10:$C$13,0),MATCH(C20,'B1.1 Current Distribution Rates'!$E$8:$Q$8,0)) -> 15.3546 | F20: =$E$13 -> 0.015 | G20: 15.584919 | H20: =INDEX('B1.2 Billing Determinants'!$E$9:$J$12,MATCH($C$8,'B1.2 Billing Determinants'!$C$9:$C$12,0),MATCH(C20,'B1.2 Billing Determinants'!$E$8:$J$8,0)) -> 0 | I20: =G20*H20/100 -> 0
C21: Tier 3 | D21: cents / m3 | E21: =INDEX('B1.1 Current Distribution Rates'!$E$10:$Q$13,MATCH($C$8,'B1.1 Current Distribution Rates'!$C$10:$C$13,0),MATCH(C21,'B1.1 Current Distribution Rates'!$E$8:$Q$8,0)) -> 15.3546 | F21: =$E$13 -> 0.015 | G21: 15.584919 | H21: =INDEX('B1.2 Billing Determinants'!$E$9:$J$12,MATCH($C$8,'B1.2 Billing Determinants'!$C$9:$C$12,0),MATCH(C21,'B1.2 Billing Determinants'!$E$8:$J$8,0)) -> 338331.6191 | I21: 52728.70879
C22: Contract Demand | D22: cents / m3 | E22: =INDEX('B1.1 Current Distribution Rates'!$E$10:$Q$13,MATCH($C$8,'B1.1 Current Distribution Rates'!$C$10:$C$13,0),MATCH(C22,'B1.1 Current Distribution Rates'!$E$8:$Q$8,0)) -> 0 | F22: =$E$13 -> 0.015 | G22: 0 | H22: =INDEX('B1.2 Billing Determinants'!$E$9:$J$12,MATCH($C$8,'B1.2 Billing Determinants'!$C$9:$C$12,0),MATCH(C22,'B1.2 Billing Determinants'!$E$8:$J$8,0)) -> 0 | I22: =G22*H22/100*12 -> 0
C23: Gas Supply | D23: cents / m3 | E23: =INDEX('B1.1 Current Distribution Rates'!$E$10:$Q$13,MATCH($C$8,'B1.1 Current Distribution Rates'!$C$10:$C$13,0),MATCH(C23,'B1.1 Current Distribution Rates'!$E$8:$Q$8,0)) -> 11.5114 | F23: 0 | G23: 11.5114 | H23: =INDEX('B1.2 Billing Determinants'!$E$9:$J$12,MATCH($C$8,'B1.2 Billing Determinants'!$C$9:$C$12,0),MATCH(C23,'B1.2 Billing Determinants'!$E$8:$J$8,0)) -> 338331.6191 | I23: 38946.706
C24: Upstream Recovery Charge | D24: cents / m3 | E24: =INDEX('B1.1 Current Distribution Rates'!$E$10:$Q$13,MATCH($C$8,'B1.1 Current Distribution Rates'!$C$10:$C$13,0),MATCH(C24,'B1.1 Current Distribution Rates'!$E$8:$Q$8,0)) -> 0.0352 | F24: 0 | G24: 0.0352 | H24: =H23 -> 338331.6191 | I24: 119.0927299
C25: Transportation & Storage Charge | D25: cents / m3 | E25: =INDEX('B1.1 Current Distribution Rates'!$E$10:$Q$13,MATCH($C$8,'B1.1 Current Distribution Rates'!$C$10:$C$13,0),MATCH(C25,'B1.1 Current Distribution Rates'!$E$8:$Q$8,0)) -> 1.8166 | F25: 0 | G25: 1.8166 | H25: =H24 -> 338331.6191 | I25: 6146.132193
C26: Federal Carbon Charge | D26: cents / m3 | E26: =INDEX('B1.1 Current Distribution Rates'!$E$10:$Q$13,MATCH($C$8,'B1.1 Current Distribution Rates'!$C$10:$C$13,0),MATCH(C26,'B1.1 Current Distribution Rates'!$E$8:$Q$8,0)) -> 3.91 | F26: 0 | G26: 3.91 | H26: =H25 -> 338331.6191 | I26: 13228.76631
I27: =SUM(I17:I26) -> 113666.126

Sheet D1.4 Rate 16 Adjustment
C2: ='A1.1 Distributor Information'!C3 -> Name of LDC: EPCOR Natural Gas Limited Partnership
C3: ='A1.1 Distributor Information'!C4 -> OEB Application Number: EB-2019-0264 Exhibit A - 2020 Custom Incentive Application
C5: Rate 16 Incentive Rate Adjustment
C6: =MID(CELL("filename",A1),FIND("]",CELL("filename",A1))+1,255) -> D1.4 Rate 16 Adjustment
C8: Rate 16
C10: GDP-IPI
C11: Less Productivity
C12: Less Stretch Factor
C13: Incentive Rate Adjustment | E13: 0.015
C14: Months / Year | E14: 12
D16: Unit | E16: Current Rate | F16: Price Cap | G16: Adjusted Rates | H16: Billing Determinants | I16: Revenue
C17: Monthly Base | D17: $/month | E17: =INDEX('B1.1 Current Distribution Rates'!$E$10:$Q$13,MATCH($C$8,'B1.1 Current Distribution Rates'!$C$10:$C$13,0),MATCH(C17,'B1.1 Current Distribution Rates'!$E$8:$Q$8,0)) -> 1500 | F17: =$E$13 -> 0.015 | G17: =E17*(1+F17) -> 1522.5 | H17: =INDEX('B1.2 Billing Determinants'!$E$9:$J$12,MATCH($C$8,'B1.2 Billing Determinants'!$C$9:$C$12,0),MATCH(C17,'B1.2 Billing Determinants'!$E$8:$J$8,0)) -> 2 | I17: =G17*H17*$E$14 -> 36540
C18: =OneDollar -> Bill 32 Rate | D18: $/month | E18: =INDEX('B1.1 Current Distribution Rates'!$E$10:$Q$13,MATCH($C$8,'B1.1 Current Distribution Rates'!$C$10:$C$13,0),MATCH(C18,'B1.1 Current Distribution Rates'!$E$8:$Q$8,0)) -> 1 | F18: 0 | G18: =E18*(1+F18) -> 1 | H18: =H17 -> 2 | I18: =G18*H18*$E$14 -> 24
C19: Tier 1 | D19: cents / m3 | E19: =INDEX('B1.1 Current Distribution Rates'!$E$10:$Q$13,MATCH($C$8,'B1.1 Current Distribution Rates'!$C$10:$C$13,0),MATCH(C19,'B1.1 Current Distribution Rates'!$E$8:$Q$8,0)) -> 0 | F19: 0.015 | G19: 0 | H19: =INDEX('B1.2 Billing Determinants'!$E$9:$J$12,MATCH($C$8,'B1.2 Billing Determinants'!$C$9:$C$12,0),MATCH(C19,'B1.2 Billing Determinants'!$E$8:$J$8,0)) -> 0 | I19: =G19*H19/100 -> 0
C20: Tier 2 | D20: cents / m3 | E20: =INDEX('B1.1 Current Distribution Rates'!$E$10:$Q$13,MATCH($C$8,'B1.1 Current Distribution Rates'!$C$10:$C$13,0),MATCH(C20,'B1.1 Current Distribution Rates'!$E$8:$Q$8,0)) -> 0 | F20: 0.015 | G20: 0 | H20: =INDEX('B1.2 Billing Determinants'!$E$9:$J$12,MATCH($C$8,'B1.2 Billing Determinants'!$C$9:$C$12,0),MATCH(C20,'B1.2 Billing Determinants'!$E$8:$J$8,0)) -> 0 | I20: =G20*H20/100 -> 0
C21: Tier 3 | D21: cents / m3 | E21: =INDEX('B1.1 Current Distribution Rates'!$E$10:$Q$13,MATCH($C$8,'B1.1 Current Distribution Rates'!$C$10:$C$13,0),MATCH(C21,'B1.1 Current Distribution Rates'!$E$8:$Q$8,0)) -> 0 | F21: 0.015 | G21: 0 | H21: =INDEX('B1.2 Billing Determinants'!$E$9:$J$12,MATCH($C$8,'B1.2 Billing Determinants'!$C$9:$C$12,0),MATCH(C21,'B1.2 Billing Determinants'!$E$8:$J$8,0)) -> 0 | I21: =G21*H21/100 -> 0
C22: Contract Demand | D22: Cents/contracted demand m3 | E22: =INDEX('B1.1 Current Distribution Rates'!$E$10:$Q$13,MATCH($C$8,'B1.1 Current Distribution Rates'!$C$10:$C$13,0),MATCH(C22,'B1.1 Current Distribution Rates'!$E$8:$Q$8,0)) -> 102.3139 | F22: 0.015 | G22: 103.8486085 | H22: =INDEX('B1.2 Billing Determinants'!$E$9:$J$12,MATCH($C$8,'B1.2 Billing Determinants'!$C$9:$C$12,0),MATCH(C22,'B1.2 Billing Determinants'!$E$8:$J$8,0)) -> 89716 | I22: =G22*H22/100*$E$14 -> 1118025.811
C23: Gas Supply | D23: cents / m3 | E23: =INDEX('B1.1 Current Distribution Rates'!$E$10:$Q$13,MATCH($C$8,'B1.1 Current Distribution Rates'!$C$10:$C$13,0),MATCH(C23,'B1.1 Current Distribution Rates'!$E$8:$Q$8,0)) -> 0 | F23: 0 | G23: 0 | H23: =INDEX('B1.2 Billing Determinants'!$E$9:$J$12,MATCH($C$8,'B1.2 Billing Determinants'!$C$9:$C$12,0),MATCH(C23,'B1.2 Billing Determinants'!$E$8:$J$8,0)) -> 0 | I23: =G23*H23/100 -> 0
C24: Upstream Recovery Charge | D24: Cents/contracted demand m3 | E24: =INDEX('B1.1 Current Distribution Rates'!$E$10:$Q$13,MATCH($C$8,'B1.1 Current Distribution Rates'!$C$10:$C$13,0),MATCH(C24,'B1.1 Current Distribution Rates'!$E$8:$Q$8,0)) -> 14.2434 | F24: 0 | G24: 14.2434 | H24: =H22 -> 89716 | I24: =G24*H24/100*$E$14 -> 153343.3049
C25: Transportation Charge From Dawn | D25: Cents/contracted demand m3 | E25: =INDEX('B1.1 Current Distribution Rates'!$E$10:$Q$13,MATCH($C$8,'B1.1 Current Distribution Rates'!$C$10:$C$13,0),MATCH(C25,'B1.1 Current Distribution Rates'!$E$8:$Q$8,0)) -> 18.2999 | F25: 0 | G25: 18.2999 | H25: =H24 -> 89716 | I25: =G25*H25/100*$E$14 -> 197015.2594
C26: Transportation Charge From Kirkwall | D26: Cents/contracted demand m3 | E26: =INDEX('B1.1 Current Distribution Rates'!$E$10:$Q$13,MATCH($C$8,'B1.1 Current Distribution Rates'!$C$10:$C$13,0),MATCH(C26,'B1.1 Current Distribution Rates'!$E$8:$Q$8,0)) -> 11.848 | F26: 0 | G26: 11.848 | H26: 0 | I26: =G26*H26/100*$E$14 -> 0
C27: Transportation Charge From Parkway | D27: Cents/contracted demand m3 | E27: =INDEX('B1.1 Current Distribution Rates'!$E$10:$Q$13,MATCH($C$8,'B1.1 Current Distribution Rates'!$C$10:$C$13,0),MATCH(C27,'B1.1 Current Distribution Rates'!$E$8:$Q$8,0)) -> 11.848 | F27: 0 | G27: 11.848 | H27: 0 | I27: =G27*H27/100*$E$14 -> 0
C28: Federal Carbon Charge | D28: Cents/contracted demand m3 | E28: =INDEX('B1.1 Current Distribution Rates'!$E$10:$Q$13,MATCH($C$8,'B1.1 Current Distribution Rates'!$C$10:$C$13,0),MATCH(C28,'B1.1 Current Distribution Rates'!$E$8:$Q$8,0)) -> 3.91 | F28: 0 | G28: 3.91 | H28: =H25 -> 89716 | I28: =G28*H28/100*$E$14 -> 42094.7472
I29: =SUM(I17:I28) -> 1547043.123

Sheet E1.1 Proposed Dist Rates
C2: ='A1.1 Distributor Information'!C3 -> Name of LDC: EPCOR Natural Gas Limited Partnership
C3: ='A1.1 Distributor Information'!C4 -> OEB Application Number: EB-2019-0264 Exhibit A - 2020 Custom Incentive Application
C5: Proposed Distribution Tariff Sheet Rates
C6: =MID(CELL("filename",A1),FIND("]",CELL("filename",A1))+1,255) -> E1.1 Proposed Dist Rates
C8: Rate Class | E8: Monthly Base | F8: =OneDollar -> Bill 32 Rate | G8: Tier 1 | H8: Tier 2 | I8: Tier 3 | J8: Contract Demand | K8: Gas Supply | L8: Upstream Recovery Charge | M8: Transportation & Storage Charge | N8: Transportation Charge From Dawn | O8: Transportation Charge From Kirkwall | P8: Transportation Charge From Parkway | Q8: Federal Carbon Charge
E9: $/month | F9: $/month | G9: ₵ / m3 | H9: ₵ / m3 | I9: ₵ / m3 | J9: ₵/contracted m3 | K9: ₵/m3 | L9: (A) | M9: ₵ / m3 | N9: ₵ /contracted m3 | O9: ₵ /contracted m3 | P9: ₵ /contracted m3 | Q9: ₵ / m3
C10: Rate 1 | D10: General Firm Service | E10: =INDEX('D1.1 Rate 1 Adjustment'!$G$17:$G$26,MATCH(E$8,'D1.1 Rate 1 Adjustment'!$C$17:$C$26,0)) -> 25.375 | F10: =INDEX('D1.1 Rate 1 Adjustment'!$G$17:$G$26,MATCH(F$8,'D1.1 Rate 1 Adjustment'!$C$17:$C$26,0)) -> 1 | G10: =INDEX('D1.1 Rate 1 Adjustment'!$G$17:$G$26,MATCH(G$8,'D1.1 Rate 1 Adjustment'!$C$17:$C$26,0)) -> 27.19672486 | H10: =INDEX('D1.1 Rate 1 Adjustment'!$G$17:$G$26,MATCH(H$8,'D1.1 Rate 1 Adjustment'!$C$17:$C$26,0)) -> 26.66099612 | I10: =INDEX('D1.1 Rate 1 Adjustment'!$G$17:$G$26,MATCH(I$8,'D1.1 Rate 1 Adjustment'!$C$17:$C$26,0)) -> 25.87347488 | K10: =INDEX('D1.1 Rate 1 Adjustment'!$G$17:$G$26,MATCH(K$8,'D1.1 Rate 1 Adjustment'!$C$17:$C$26,0)) -> 11.5114 | L10: =INDEX('D1.1 Rate 1 Adjustment'!$G$17:$G$26,MATCH(L$8,'D1.1 Rate 1 Adjustment'!$C$17:$C$26,0)) -> 1.474 | M10: =INDEX('D1.1 Rate 1 Adjustment'!$G$17:$G$26,MATCH(M$8,'D1.1 Rate 1 Adjustment'!$C$17:$C$26,0)) -> 2.6982 | Q10: =INDEX('D1.1 Rate 1 Adjustment'!$G$17:$G$26,MATCH(Q$8,'D1.1 Rate 1 Adjustment'!$C$17:$C$26,0)) -> 3.91
C11: Rate 6 | D11: Large Volume General Firm Service | E11: =INDEX('D1.2 Rate 6 Adjustment'!$G$17:$G$26,MATCH(E8,'D1.2 Rate 6 Adjustment'!$C$17:$C$26,0)) -> 103.53 | F11: =INDEX('D1.2 Rate 6 Adjustment'!$G$17:$G$26,MATCH(F8,'D1.2 Rate 6 Adjustment'!$C$17:$C$26,0)) -> 1 | G11: =INDEX('D1.2 Rate 6 Adjustment'!$G$17:$G$26,MATCH(G8,'D1.2 Rate 6 Adjustment'!$C$17:$C$26,0)) -> 25.0896835 | H11: =INDEX('D1.2 Rate 6 Adjustment'!$G$17:$G$26,MATCH(H8,'D1.2 Rate 6 Adjustment'!$C$17:$C$26,0)) -> 22.580705 | I11: =INDEX('D1.2 Rate 6 Adjustment'!$G$17:$G$26,MATCH(I8,'D1.2 Rate 6 Adjustment'!$C$17:$C$26,0)) -> 21.451619 | K11: =INDEX('D1.2 Rate 6 Adjustment'!$G$17:$G$26,MATCH(K8,'D1.2 Rate 6 Adjustment'!$C$17:$C$26,0)) -> 11.5114 | L11: =INDEX('D1.2 Rate 6 Adjustment'!$G$17:$G$26,MATCH(L8,'D1.2 Rate 6 Adjustment'!$C$17:$C$26,0)) -> 2.92 | M11: =INDEX('D1.2 Rate 6 Adjustment'!$G$17:$G$26,MATCH(M8,'D1.2 Rate 6 Adjustment'!$C$17:$C$26,0)) -> 5.6413 | Q11: =INDEX('D1.2 Rate 6 Adjustment'!$G$17:$G$26,MATCH(Q8,'D1.2 Rate 6 Adjustment'!$C$17:$C$26,0)) -> 3.91
C12: Rate 11 | D12: Large Volume Seasonal Service | E12: =INDEX('D1.3 Rate 11 Adjustment'!$G$17:$G$26,MATCH(E8,'D1.3 Rate 11 Adjustment'!$C$17:$C$26,0)) -> 207.06 | F12: =INDEX('D1.3 Rate 11 Adjustment'!$G$17:$G$26,MATCH(F8,'D1.3 Rate 11 Adjustment'!$C$17:$C$26,0)) -> 1 | G12: =INDEX('D1.3 Rate 11 Adjustment'!$G$17:$G$26,MATCH(G8,'D1.3 Rate 11 Adjustment'!$C$17:$C$26,0)) -> 15.584919 | H12: =INDEX('D1.3 Rate 11 Adjustment'!$G$17:$G$26,MATCH(H8,'D1.3 Rate 11 Adjustment'!$C$17:$C$26,0)) -> 15.584919 | I12: =INDEX('D1.3 Rate 11 Adjustment'!$G$17:$G$26,MATCH(I8,'D1.3 Rate 11 Adjustment'!$C$17:$C$26,0)) -> 15.584919 | K12: =INDEX('D1.3 Rate 11 Adjustment'!$G$17:$G$26,MATCH(K8,'D1.3 Rate 11 Adjustment'!$C$17:$C$26,0)) -> 11.5114 | L12: =INDEX('D1.3 Rate 11 Adjustment'!$G$17:$G$26,MATCH(L8,'D1.3 Rate 11 Adjustment'!$C$17:$C$26,0)) -> 0.0352 | M12: =INDEX('D1.3 Rate 11 Adjustment'!$G$17:$G$26,MATCH(M8,'D1.3 Rate 11 Adjustment'!$C$17:$C$26,0)) -> 1.8166 | Q12: =INDEX('D1.3 Rate 11 Adjustment'!$G$17:$G$26,MATCH(Q8,'D1.3 Rate 11 Adjustment'!$C$17:$C$26,0)) -> 3.91
C13: Rate 16 | D13: Contracted Firm Service | E13: =INDEX('D1.4 Rate 16 Adjustment'!$G$17:$G$28,MATCH(E8,'D1.4 Rate 16 Adjustment'!$C$17:$C$28,0)) -> 1522.5 | F13: =INDEX('D1.4 Rate 16 Adjustment'!$G$17:$G$28,MATCH(F8,'D1.4 Rate 16 Adjustment'!$C$17:$C$28,0)) -> 1 | J13: =INDEX('D1.4 Rate 16 Adjustment'!$G$17:$G$28,MATCH(J8,'D1.4 Rate 16 Adjustment'!$C$17:$C$28,0)) -> 103.8486085 | L13: =INDEX('D1.4 Rate 16 Adjustment'!$G$17:$G$28,MATCH(L8,'D1.4 Rate 16 Adjustment'!$C$17:$C$28,0)) -> 14.2434 | N13: ='D1.4 Rate 16 Adjustment'!G25 -> 18.2999 | O13: =INDEX('D1.4 Rate 16 Adjustment'!$G$17:$G$28,MATCH(O8,'D1.4 Rate 16 Adjustment'!$C$17:$C$28,0)) -> 11.848 | P13: =INDEX('D1.4 Rate 16 Adjustment'!$G$17:$G$28,MATCH(P8,'D1.4 Rate 16 Adjustment'!$C$17:$C$28,0)) -> 11.848 | Q13: =INDEX('D1.4 Rate 16 Adjustment'!$G$17:$G$28,MATCH(Q8,'D1.4 Rate 16 Adjustment'!$C$17:$C$28,0)) -> 3.91
C14: (A) Rates 1, 6, and 11 all charged on cents / m3 basis. Rate 16 billed on cents / m3 of contracted demand basis

Sheet E1.2 Billing Determinants
C2: ='A1.1 Distributor Information'!C3 -> Name of LDC: EPCOR Natural Gas Limited Partnership
C3: ='A1.1 Distributor Information'!C4 -> OEB Application Number: EB-2019-0264 Exhibit A - 2020 Custom Incentive Application
C5: Billing Determinants
C6: =MID(CELL("filename",A1),FIND("]",CELL("filename",A1))+1,255) -> E1.2 Billing Determinants
C9: Rate Class | D9: Description | E9: Base | F9: Tier 1 | G9: Tier 2 | H9: Tier 3 | I9: Firm Demand | J9: Gas Supply
E10: cx's | F10: m3 | G10: m3 | H10: m3 | I10: Contracted m3 | J10: m3
C11: Rate 1 | D11: General Firm Service | E11: ='B1.2 Billing Determinants'!E9 -> 1753 | F11: ='B1.2 Billing Determinants'!F9 -> 1774284.216 | G11: ='B1.2 Billing Determinants'!G9 -> 2138384.704 | H11: ='B1.2 Billing Determinants'!H9 -> 101472.5796 | I11: ='B1.2 Billing Determinants'!I9 -> 0 | J11: ='B1.2 Billing Determinants'!J9 -> 4014141.5
C12: Rate 6 | D12: Large Volume General Firm Service | E12: ='B1.2 Billing Determinants'!E10 -> 24 | F12: ='B1.2 Billing Determinants'!F10 -> 245078.5278 | G12: ='B1.2 Billing Determinants'!G10 -> 526295.0583 | H12: ='B1.2 Billing Determinants'!H10 -> 115884.777 | I12: ='B1.2 Billing Determinants'!I10 -> 0 | J12: ='B1.2 Billing Determinants'!J10 -> 887258.3631
C13: Rate 11 | D13: Large Volume Seasonal Service | E13: ='B1.2 Billing Determinants'!E11 -> 1 | F13: ='B1.2 Billing Determinants'!F11 -> 0 | G13: ='B1.2 Billing Determinants'!G11 -> 0 | H13: ='B1.2 Billing Determinants'!H11 -> 338331.6191 | I13: ='B1.2 Billing Determinants'!I11 -> 0 | J13: ='B1.2 Billing Determinants'!J11 -> 338331.6191
C14: Rate 16 | D14: Contracted Firm Service | E14: ='B1.2 Billing Determinants'!E12 -> 2 | F14: ='B1.2 Billing Determinants'!F12 -> 0 | G14: ='B1.2 Billing Determinants'!G12 -> 0 | H14: ='B1.2 Billing Determinants'!H12 -> 0 | I14: ='B1.2 Billing Determinants'!I12 -> 89716 | J14: ='B1.2 Billing Determinants'!J12 -> 0

Sheet E1.3 Proposed Rev From Rate
C2: ='A1.1 Distributor Information'!C3 -> Name of LDC: EPCOR Natural Gas Limited Partnership
C3: ='A1.1 Distributor Information'!C4 -> OEB Application Number: EB-2019-0264 Exhibit A - 2020 Custom Incentive Application
C5: Proposed Revenue from Rates
C7: Months / Year | D7: 12
C9: Rate Class | E9: Monthly Base | F9: =OneDollar -> Bill 32 Rate | G9: Tier 1 | H9: Tier 2 | I9: Tier 3 | J9: Contracted Demand | K9: Gas Supply | L9: Upstream Recovery Charge | M9: Transportation & Storage Charge | N9: Federal Carbon Charge | O9: Total
M10: (A)
C11: Rate 1 | D11: General Firm Service | E11: ='E1.1 Proposed Dist Rates '!E10*'E1.2 Billing Determinants'!E11*$D$7 -> 533788.5 | F11: ='E1.1 Proposed Dist Rates '!F10*'E1.2 Billing Determinants'!E11*$D$7 -> 21036 | G11: ='E1.1 Proposed Dist Rates '!G10*'E1.2 Billing Determinants'!F11/100 -> 482547.1964 | H11: ='E1.1 Proposed Dist Rates '!H10*'E1.2 Billing Determinants'!G11/100 -> 570114.6631 | I11: ='E1.1 Proposed Dist Rates '!I10*'E1.2 Billing Determinants'!H11/100 -> 26254.48239 | J11: ='E1.1 Proposed Dist Rates '!J10*'E1.2 Billing Determinants'!I11/100*$D$7 -> 0 | K11: ='E1.1 Proposed Dist Rates '!K10*'E1.2 Billing Determinants'!J11/100 -> 462083.8846 | L11: ='E1.1 Proposed Dist Rates '!L10*'E1.2 Billing Determinants'!$J11/100 -> 59168.44571 | M11: ='E1.1 Proposed Dist Rates '!M10*'E1.2 Billing Determinants'!$J11/100 -> 108309.566 | N11: ='E1.1 Proposed Dist Rates '!Q10*'E1.2 Billing Determinants'!J11/100 -> 156952.9327 | O11: =SUM(E11:N11) -> 2420255.671
C12: Rate 6 | D12: Large Volume General Firm Service | E12: ='E1.1 Proposed Dist Rates '!E11*'E1.2 Billing Determinants'!E12*$D$7 -> 29816.64 | F12: ='E1.1 Proposed Dist Rates '!F11*'E1.2 Billing Determinants'!E12*$D$7 -> 288 | G12: ='E1.1 Proposed Dist Rates '!G11*'E1.2 Billing Determinants'!F12/100 -> 61489.42695 | H12: ='E1.1 Proposed Dist Rates '!H11*'E1.2 Billing Determinants'!G12/100 -> 118841.1346 | I12: ='E1.1 Proposed Dist Rates '!I11*'E1.2 Billing Determinants'!H12/100 -> 24859.16083 | J12: ='E1.1 Proposed Dist Rates '!J11*'E1.2 Billing Determinants'!I12/100*$D$7 -> 0 | K12: ='E1.1 Proposed Dist Rates '!K11*'E1.2 Billing Determinants'!J12/100 -> 102135.8592 | L12: ='E1.1 Proposed Dist Rates '!L11*'E1.2 Billing Determinants'!$J12/100 -> 25907.9442 | M12: ='E1.1 Proposed Dist Rates '!M11*'E1.2 Billing Determinants'!$J12/100 -> 50052.90604 | N12: ='E1.1 Proposed Dist Rates '!Q11*'E1.2 Billing Determinants'!J12/100 -> 34691.802 | O12: =SUM(E12:N12) -> 448082.8738
C13: Rate 11 | D13: Large Volume Seasonal Service | E13: ='E1.1 Proposed Dist Rates '!E12*'E1.2 Billing Determinants'!E13*$D$7 -> 2484.72 | F13: ='E1.1 Proposed Dist Rates '!F12*'E1.2 Billing Determinants'!E13*$D$7 -> 12 | G13: ='E1.1 Proposed Dist Rates '!G12*'E1.2 Billing Determinants'!F13/100 -> 0 | H13: ='E1.1 Proposed Dist Rates '!H12*'E1.2 Billing Determinants'!G13/100 -> 0 | I13: ='E1.1 Proposed Dist Rates '!I12*'E1.2 Billing Determinants'!H13/100 -> 52728.70879 | J13: ='E1.1 Proposed Dist Rates '!J12*'E1.2 Billing Determinants'!I13/100*$D$7 -> 0 | K13: ='E1.1 Proposed Dist Rates '!K12*'E1.2 Billing Determinants'!J13/100 -> 38946.706 | L13: ='E1.1 Proposed Dist Rates '!L12*'E1.2 Billing Determinants'!$J13/100 -> 119.0927299 | M13: ='E1.1 Proposed Dist Rates '!M12*'E1.2 Billing Determinants'!$J13/100 -> 6146.132193 | N13: ='E1.1 Proposed Dist Rates '!Q12*'E1.2 Billing Determinants'!J13/100 -> 13228.76631 | O13: =SUM(E13:N13) -> 113666.126
C14: Rate 16 | D14: Contracted Firm Service | E14: ='E1.1 Proposed Dist Rates '!E13*'E1.2 Billing Determinants'!E14*$D$7 -> 36540 | F14: ='E1.1 Proposed Dist Rates '!F13*'E1.2 Billing Determinants'!E14*$D$7 -> 24 | G14: ='E1.1 Proposed Dist Rates '!G13*'E1.2 Billing Determinants'!F14/100 -> 0 | H14: ='E1.1 Proposed Dist Rates '!H13*'E1.2 Billing Determinants'!G14/100 -> 0 | I14: ='E1.1 Proposed Dist Rates '!I13*'E1.2 Billing Determinants'!H14/100 -> 0 | J14: ='E1.1 Proposed Dist Rates '!J13*'E1.2 Billing Determinants'!I14/100*$D$7 -> 1118025.811 | K14: ='E1.1 Proposed Dist Rates '!K13*'E1.2 Billing Determinants'!J14/100 -> 0 | L14: ='E1.1 Proposed Dist Rates '!L13*'E1.2 Billing Determinants'!$I14/100*$D$7 -> 153343.3049 | M14: ='E1.1 Proposed Dist Rates '!N13*'E1.2 Billing Determinants'!$I14/100*$D$7 -> 197015.2594 | N14: ='E1.1 Proposed Dist Rates '!Q13*'E1.2 Billing Determinants'!I14/100*$D$7 -> 42094.7472 | O14: =SUM(E14:N14) -> 1547043.123
C15: (A) Transportation & Storage for Rates 1, 6, and 11. Transportation only (no seasonal storage) for Rate 16 from Dawn. | N15: Proposed Revenue | O15: =SUM(O11:O14) -> 4529047.793
N16: Current Revenue | O16: ='B1.3 Current Rev From Rates'!O18 -> 4483863.206
N17: Change | O17: =O15-O16 -> 45184.58785
N18: % Change | O18: =O17/O16 -> 0.01007715574

Sheet F1.1 Calc Shared Tax Changes (hidden)
C2: ='A1.1 Distributor Information'!C3 -> Name of LDC: EPCOR Natural Gas Limited Partnership
C3: ='A1.1 Distributor Information'!C4 -> OEB Application Number: EB-2019-0264 Exhibit A - 2020 Custom Incentive Application
C10: Tax Change Rate Rider
E14: 2010 | G14: 2011 | I14: 2012 | K14: 2013 | M14: 2014 | O14: 2015 | Q14: 2016 | S14: 2017
C15: Regulatory Taxable Income | E15: 793363 | G15: =E15 -> 793363 | I15: =E15 -> 793363 | K15: =E15 -> 793363 | M15: =E15 -> 793363 | O15: =G15 -> 793363 | Q15: =E15 -> 793363 | S15: =G15 -> 793363
C17: Federal Income Tax Rate | E17: =(0.18/12*3)+(0.165/12*9) -> 0.16875 | G17: =(0.165/12*3)+(0.15/12*9) -> 0.15375 | I17: =0.15 -> 0.15 | K17: =0.15 -> 0.15 | M17: =0.15 -> 0.15 | O17: =0.15 -> 0.15 | Q17: =0.15 -> 0.15 | S17: =0.15 -> 0.15
C18: Federal Income Tax | E18: =E15*E17 -> 133880.0063 | G18: =G15*G17 -> 121979.5612 | I18: =I15*I17 -> 119004.45 | K18: =K15*K17 -> 119004.45 | M18: =M15*M17 -> 119004.45 | O18: =O15*O17 -> 119004.45 | Q18: =Q15*Q17 -> 119004.45 | S18: =S15*S17 -> 119004.45
C20: Provincial Income Tax
C21: Provincial Income Tax Rate - First $500,000 | E21: 0.045 | G21: =E21 -> 0.045 | I21: =G21 -> 0.045 | K21: =I21 -> 0.045 | M21: =I21 -> 0.045 | O21: =K21 -> 0.045
C22: Provincial Income Tax - First $500,000 | E22: =IF(E15>500000,500000*E21,E15*E21) -> 22500 | G22: =IF(G15>500000,500000*G21,G15*G21) -> 22500 | I22: =IF(I15>500000,500000*I21,I15*I21) -> 22500 | K22: =IF(K15>500000,500000*K21,K15*K21) -> 22500 | M22: =IF(M15>500000,500000*M21,M15*M21) -> 22500 | O22: =IF(O15>500000,500000*O21,O15*O21) -> 22500 | Q22: =IF(Q15>500000,500000*Q21,Q15*Q21) -> 0 | S22: =IF(S15>500000,500000*S21,S15*S21) -> 0
C23: Provincial Income Tax Rate - Over $500,000 | E23: 0.11875 | G23: =0.1175/12*9+0.1125/12*3 -> 0.11625 | I23: 0.115 | K23: 0.115 | M23: 0.115 | O23: 0.115 | Q23: 0.115 | S23: 0.115
C24: Provincial Income Tax - Over $500,000 | E24: =IF(E15>500000,(E15-500000)*E23,0) -> 34836.85625 | G24: =IF(G15>500000,(G15-500000)*G23,0) -> 34103.44875 | I24: =IF(I15>500000,(I15-500000)*I23,0) -> 33736.745 | K24: =IF(K15>500000,(K15-500000)*K23,0) -> 33736.745 | M24: =IF(M15>500000,(M15-500000)*M23,0) -> 33736.745 | O24: =IF(O15>500000,(O15-500000)*O23,0) -> 33736.745 | Q24: =Q15*Q23 -> 91236.745 | S24: =S15*S23 -> 91236.745
C26: Total Income Taxes Payable | E26: =E18+E22+E24 -> 191216.8625 | G26: =G18+G22+G24 -> 178583.01 | I26: =I18+I22+I24 -> 175241.195 | K26: =K18+K22+K24 -> 175241.195 | M26: =M18+M22+M24 -> 175241.195 | O26: =O18+O22+O24 -> 175241.195 | Q26: =Q18+Q22+Q24 -> 210241.195 | S26: =S18+S22+S24 -> 210241.195
C27: Effective Tax Rate | E27: =E26/E15 -> 0.2410206457 | G27: =G26/G15 -> 0.225096217 | I27: =I26/I15 -> 0.2208840027 | K27: =K26/K15 -> 0.2208840027 | M27: =M26/M15 -> 0.2208840027 | O27: =O26/O15 -> 0.2208840027 | Q27: =Q26/Q15 -> 0.265 | S27: =S26/S15 -> 0.265
C29: Grossed up Income Tax | E29: =E26/(1-E27) -> 251939.4782 | G29: =G26/(1-G27) -> 230458.3019 | I29: =I26/(1-I27) -> 224923.1123 | K29: =K26/(1-K27) -> 224923.1123 | M29: =M26/(1-M27) -> 224923.1123 | O29: =O26/(1-O27) -> 224923.1123 | Q29: =Q26/(1-Q27) -> 286042.4422 | S29: =S26/(1-S27) -> 286042.4422
C31: Change in Income Taxes | G31: =$E$29-G29 -> 21481.17626 | I31: =$E$29-I29 -> 27016.36586 | K31: =$E$29-K29 -> 27016.36586 | M31: =$E$29-M29 -> 27016.36586 | O31: =$E$29-O29 -> 27016.36586 | Q31: =$E$29-Q29 -> -34102.96397 | S31: =$E$29-S29 -> -34102.96397
C33: 50 % Change in Taxes | G33: =G31/2 -> 10740.58813 | I33: =I31/2 -> 13508.18293 | K33: =K31/2 -> 13508.18293 | M33: =M31/2 -> 13508.18293 | O33: =O31/2 -> 13508.18293 | Q33: =Q31/2 -> -17051.48199 | S33: =S31/2 -> -17051.48199
C38: =MID(CELL("filename",A1),FIND("]",CELL("filename",A1))+1,255) -> F1.1 Calc Shared Tax Changes

Sheet F1.2 Alloc Shared Tax Changes (hidden)
C2: ='A1.1 Distributor Information'!C3 -> Name of LDC: EPCOR Natural Gas Limited Partnership
C3: ='A1.1 Distributor Information'!C4 -> OEB Application Number: EB-2019-0264 Exhibit A - 2020 Custom Incentive Application
C10: Allocation of Shared Tax Changes
C15: Rate Group | E15: Revenue By Rate Class | G15: Proportionate Revenue | I15: Shared Tax Changes | K15: Number of Customers | M15: Number of Months | O15: Fixed Monthy Rate Rider
C16: RATE 1 - General Service Rate | E16: =SUM('B1.3 Current Rev From Rates'!#REF!) ->  | G16: =E16/$E$22 ->  | I16: =$I$22*G16 ->  | K16: =SUM('B1.2 Billing Determinants'!#REF!) ->  | M16: 12 | O16: =ROUND(I16/K16/M16,4) -> 
C17: RATE 2 - Seasonal Service | E17: =SUM('B1.3 Current Rev From Rates'!#REF!) ->  | K17: ='B1.2 Billing Determinants'!#REF! ->  | M17: 12
C18: RATE 3 - Special Large Volume Contract Rate | E18: ='B1.3 Current Rev From Rates'!#REF! ->  | K18: ='B1.2 Billing Determinants'!#REF! ->  | M18: 12
C19: RATE 4 - General Service Peaking | E19: =SUM('B1.3 Current Rev From Rates'!#REF!) ->  | K19: ='B1.2 Billing Determinants'!#REF! ->  | M19: 12
C20: RATE 5 - Interruptible Peaking Contract Rate | E20: ='B1.3 Current Rev From Rates'!#REF! ->  | K20: ='B1.2 Billing Determinants'!#REF! ->  | M20: 12
C21: RATE 6 - Integrated Grain Processors Co-Operative Aylmer Ethanol Production Facility | E21: ='B1.3 Current Rev From Rates'!#REF! ->  | K21: ='B1.2 Billing Determinants'!#REF! ->  | M21: 12
E22: =SUM(E16:E21) ->  | G22: =SUM(G16:G21) ->  | I22: =-'F1.1 Calc Shared Tax Changes'!S33 -> 17051.48199 | K22: =SUM(K16:K21) -> 
C28: =MID(CELL("filename",A1),FIND("]",CELL("filename",A1))+1,255) -> F1.2 Alloc Shared Tax Changes

Sheet F1.3 Rate Riders
C2: ='A1.1 Distributor Information'!C3 -> Name of LDC: EPCOR Natural Gas Limited Partnership
C3: ='A1.1 Distributor Information'!C4 -> OEB Application Number: EB-2019-0264 Exhibit A - 2020 Custom Incentive Application
C5: Delay in Revenue Recovery Rate Rider
C6: F1.3 Rate Riders | E6: Delay in Revenue Recovery Rate Rider
C8: Rate 1 | General Firm Service | E8: 1.633 | F8: Cents/m3
C9: Rate 6 | Large Volume General Firm Service | E9: 0.909 | F9: Cents/m3
C10: Rate 11 | Large Volume Seasonal Service | E10: 0.5524 | F10: Cents/m3
C11: Rate 16 | Contracted Firm Service | E11: 0.0601 | F11: Cents/contracted demand m3

Sheet F2.1 Deferred Revenue Recovery (hidden)
C2: ='A1.1 Distributor Information'!C3 -> Name of LDC: EPCOR Natural Gas Limited Partnership
C3: ='A1.1 Distributor Information'!C4 -> OEB Application Number: EB-2019-0264 Exhibit A - 2020 Custom Incentive Application
C10: Deferred Revenue Recovery
K12: Impact of October 24 Volume Change
K13: Comparison of revenue applied for July 27 version
C15: Rate Group | D15: Proposed Revenue | E15: Current Revenue | F15: Change In Revenue | G15: Deferred Revenue | H15: Number of Customers | I15: Total Annual Consumption | J15: Proposed Deferred Revenue Recovery Rate Rider cents per m3 | K15: Change in Revenue filed for July 27 | L15: Diference in revenue filed for | M15: Old proposed rate rider | N15: old rate rider at new consumption | O15: Difference in collected revenue | P15: Average Annual $ impact per customer | Q15: Annual average revenue per customer | R15: % of average annual revenue
D16: A | E16: B | F16: C = A- B | G16: D = C / 12 * 12 | H16: E | I16: F | J16: H = D /F | K16: I | L16: J = C - I | M16: K | N16: L = K * F | O16: M = D - L | P16: K = J / E | Q16: L = A / E | R16: M = K / L
C17: ='F1.2 Alloc Shared Tax Changes'!C16 -> RATE 1 - General Service Rate | D17: =SUM('E1.3 Proposed Rev From Rate'!#REF!) ->  | E17: =SUM('B1.3 Current Rev From Rates'!#REF!) ->  | F17: =D17-E17 ->  | G17: =F17/12*12 ->  | H17: ='F1.2 Alloc Shared Tax Changes'!K16 ->  | I17: ='E1.2 Billing Determinants'!#REF!+'E1.2 Billing Determinants'!#REF!+'E1.2 Billing Determinants'!#REF! ->  | J17: =ROUND(G17/I17*100,4) ->  | K17: 82174 | L17: =F17-K17 ->  | M17: 0.3611 | N17: =M17*I17/100 ->  | O17: =G17-N17 ->  | P17: =L17/H17 ->  | Q17: =D17/H17 ->  | R17: =P17/Q17 -> 
C18: ='F1.2 Alloc Shared Tax Changes'!C17 -> RATE 2 - Seasonal Service | D18: =SUM('E1.3 Proposed Rev From Rate'!#REF!) ->  | E18: =SUM('B1.3 Current Rev From Rates'!#REF!) ->  | H18: ='F1.2 Alloc Shared Tax Changes'!K17 ->  | I18: ='E1.2 Billing Determinants'!#REF!+'E1.2 Billing Determinants'!#REF! ->  | K18: 2161 | M18: 0.2199 | N18: =M18*I18/100 ->  | P18: =L18/H18 -> 
C19: ='F1.2 Alloc Shared Tax Changes'!C18 -> RATE 3 - Special Large Volume Contract Rate | D19: ='E1.3 Proposed Rev From Rate'!#REF! ->  | E19: ='B1.3 Current Rev From Rates'!#REF! ->  | H19: ='F1.2 Alloc Shared Tax Changes'!K18 ->  | I19: ='E1.2 Billing Determinants'!#REF! ->  | K19: 1735 | M19: 0.1923 | N19: =M19*I19/100 ->  | P19: =L19/H19 -> 
C20: ='F1.2 Alloc Shared Tax Changes'!C19 -> RATE 4 - General Service Peaking | D20: =SUM('E1.3 Proposed Rev From Rate'!#REF!) ->  | E20: =SUM('B1.3 Current Rev From Rates'!#REF!) ->  | H20: ='F1.2 Alloc Shared Tax Changes'!K19 ->  | I20: ='E1.2 Billing Determinants'!#REF!+'E1.2 Billing Determinants'!#REF! ->  | K20: 2125 | M20: 0.2375 | N20: =M20*I20/100 ->  | P20: =L20/H20 -> 
C21: ='F1.2 Alloc Shared Tax Changes'!C20 -> RATE 5 - Interruptible Peaking Contract Rate | D21: ='E1.3 Proposed Rev From Rate'!#REF! ->  | E21: ='B1.3 Current Rev From Rates'!#REF! ->  | H21: ='F1.2 Alloc Shared Tax Changes'!K20 ->  | I21: ='E1.2 Billing Determinants'!#REF! ->  | K21: 844 | M21: 0.1439 | N21: =M21*I21/100 ->  | P21: =L21/H21 -> 
C22: ='F1.2 Alloc Shared Tax Changes'!C21 -> RATE 6 - Integrated Grain Processors Co-Operative Aylmer Ethanol Production Facility | D22: ='E1.3 Proposed Rev From Rate'!#REF! ->  | E22: ='B1.3 Current Rev From Rates'!#REF! ->  | H22: ='F1.2 Alloc Shared Tax Changes'!K21 ->  | I22: ='E1.2 Billing Determinants'!#REF! ->  | K22: 30580 | M22: 0.0796 | N22: =G22 ->  | P22: =L22/H22*0 -> 
D23: =SUM(D17:D22) ->  | K23: =SUM(K17:K22) -> 119619 | L23: =SUM(L17:L22) ->  | N23: =SUM(N17:N22) -> 
F24: =F23/E23 -> 
P27: d
C28: =MID(CELL("filename",A1),FIND("]",CELL("filename",A1))+1,255) -> F2.1 Deferred Revenue Recovery

Sheet G1.1 Rate 1 Bill Impact
C2: ='A1.1 Distributor Information'!C3 -> Name of LDC: EPCOR Natural Gas Limited Partnership
C3: ='A1.1 Distributor Information'!C4 -> OEB Application Number: EB-2019-0264 Exhibit A - 2020 Custom Incentive Application
C5: Rate 1 Delivery Bill Impact
C6: G1.1 Rate 1 Bill Impact
C8: Rate 1
C10: Rate 1 - Existing Residential | E10: Units | F10: Current Rate | H10: Proposed Rate
C12: Customer | E12: $/month | F12: =INDEX('B1.1 Current Distribution Rates'!$E$10:$Q$13,MATCH($C$8,'B1.1 Current Distribution Rates'!$C$10:$C$13,0),COUNTA('G1.1 Rate 1 Bill Impact'!$C$12:C12)) -> 25 | H12: =INDEX('E1.1 Proposed Dist Rates '!$E$10:$Q$13,MATCH($C$8,'E1.1 Proposed Dist Rates '!$C$10:$C$13,0),COUNTA($C$12:C12)) -> 25.375
C13: =OneDollar -> Bill 32 Rate | E13: $/month | F13: =INDEX('B1.1 Current Distribution Rates'!$E$10:$Q$13,MATCH($C$8,'B1.1 Current Distribution Rates'!$C$10:$C$13,0),COUNTA('G1.1 Rate 1 Bill Impact'!$C$12:C13)) -> 1 | H13: =INDEX('E1.1 Proposed Dist Rates '!$E$10:$Q$13,MATCH($C$8,'E1.1 Proposed Dist Rates '!$C$10:$C$13,0),COUNTA($C$12:C13)) -> 1
C14: First 100 m3 | E14: ₵/m3 | F14: =INDEX('B1.1 Current Distribution Rates'!$E$10:$Q$13,MATCH($C$8,'B1.1 Current Distribution Rates'!$C$10:$C$13,0),COUNTA('G1.1 Rate 1 Bill Impact'!$C$12:C14)) -> 26.79480281 | H14: =INDEX('E1.1 Proposed Dist Rates '!$E$10:$Q$13,MATCH($C$8,'E1.1 Proposed Dist Rates '!$C$10:$C$13,0),COUNTA($C$12:C14)) -> 27.19672486
C15: Next 400 m3 | E15: ₵/m3 | F15: =INDEX('B1.1 Current Distribution Rates'!$E$10:$Q$13,MATCH($C$8,'B1.1 Current Distribution Rates'!$C$10:$C$13,0),COUNTA('G1.1 Rate 1 Bill Impact'!$C$12:C15)) -> 26.26699125 | H15: =INDEX('E1.1 Proposed Dist Rates '!$E$10:$Q$13,MATCH($C$8,'E1.1 Proposed Dist Rates '!$C$10:$C$13,0),COUNTA($C$12:C15)) -> 26.66099612
C16: GT 500m3 | E16: ₵/m3 | F16: =INDEX('B1.1 Current Distribution Rates'!$E$10:$Q$13,MATCH($C$8,'B1.1 Current Distribution Rates'!$C$10:$C$13,0),COUNTA('G1.1 Rate 1 Bill Impact'!$C$12:C16)) -> 25.49110826 | H16: =INDEX('E1.1 Proposed Dist Rates '!$E$10:$Q$13,MATCH($C$8,'E1.1 Proposed Dist Rates '!$C$10:$C$13,0),COUNTA($C$12:C16)) -> 25.87347488
C17: Contracted Demand | E17: ₵ / contracted m3 | F17: =INDEX('B1.1 Current Distribution Rates'!$E$10:$Q$13,MATCH($C$8,'B1.1 Current Distribution Rates'!$C$10:$C$13,0),COUNTA('G1.1 Rate 1 Bill Impact'!$C$12:C17)) -> 0 | H17: =INDEX('E1.1 Proposed Dist Rates '!$E$10:$Q$13,MATCH($C$8,'E1.1 Proposed Dist Rates '!$C$10:$C$13,0),COUNTA($C$12:C17)) -> 0
C18: Gas Supply | E18: ₵/m3 | F18: =INDEX('B1.1 Current Distribution Rates'!$E$10:$Q$13,MATCH($C$8,'B1.1 Current Distribution Rates'!$C$10:$C$13,0),COUNTA('G1.1 Rate 1 Bill Impact'!$C$12:C18)) -> 11.5114 | H18: =INDEX('E1.1 Proposed Dist Rates '!$E$10:$Q$13,MATCH($C$8,'E1.1 Proposed Dist Rates '!$C$10:$C$13,0),COUNTA($C$12:C18)) -> 11.5114
C19: Upstream Recovery Charge | E19: $/m3 | F19: =INDEX('B1.1 Current Distribution Rates'!$E$10:$Q$13,MATCH($C$8,'B1.1 Current Distribution Rates'!$C$10:$C$13,0),COUNTA('G1.1 Rate 1 Bill Impact'!$C$12:C19)) -> 1.474 | H19: =INDEX('E1.1 Proposed Dist Rates '!$E$10:$Q$13,MATCH($C$8,'E1.1 Proposed Dist Rates '!$C$10:$C$13,0),COUNTA($C$12:C19)) -> 1.474
C20: Transportation & Storage Charge | E20: ₵/m3 | F20: =INDEX('B1.1 Current Distribution Rates'!$E$10:$Q$13,MATCH($C$8,'B1.1 Current Distribution Rates'!$C$10:$C$13,0),COUNTA('G1.1 Rate 1 Bill Impact'!$C$12:C20)) -> 2.6982 | H20: =INDEX('E1.1 Proposed Dist Rates '!$E$10:$Q$13,MATCH($C$8,'E1.1 Proposed Dist Rates '!$C$10:$C$13,0),COUNTA($C$12:C20)) -> 2.6982
C21: Federal Carbon Charge | E21: ₵/m3 | F21: ='B1.1 Current Distribution Rates'!Q10 -> 3.91 | H21: ='E1.1 Proposed Dist Rates '!Q10 -> 3.91
C23: Rate Riders
C24: Delay in Revenue Recovery Rate Rider | E24: ₵/m3 | F24: ='C1.1 Current Rate Riders'!E10 -> 1.633 | H24: ='F1.3 Rate Riders'!E8 -> 1.633
C26: Delivery | E26: Metric | F26: Current Rate | H26: Proposed Rate | J26: Change $ | L26: Change %
C27: Customer | E27: 12 | F27: =F12*$E27 -> 300 | H27: =H12*$E27 -> 304.5 | J27: =H27-F27 -> 4.5 | L27: =J27/F27 -> 0.015
C28: =OneDollar -> Bill 32 Rate | E28: 12 | F28: =F13*$E28 -> 12 | H28: =H13*$E28 -> 12 | J28: =H28-F28 -> 0 | L28: =J28/F28 -> 0
C29: First 100 m3 | E29: 1001.316053 | F29: =F14*$E29/100 -> 268.3006619 | H29: =H14*$E29/100 -> 272.3251718 | J29: =H29-F29 -> 4.024509928 | L29: =J29/F29 -> 0.015
C30: Next 400 m3 | E30: 1147.683947 | F30: 301.462042 | H30: 305.9839727 | J30: 4.521930631 | L30: 0.015
C31: GT 500m3 | E31: 0 | F31: 0 | H31: 0 | J31: 0
C32: Contracted Demand | E32: 0 | F32: 0 | H32: 0 | J32: 0
C33: Gas Supply | E33: =SUM(E29:E32) -> 2149 | F33: 247.379986 | H33: 247.379986 | J33: 0 | L33: 0
C34: Upstream Recovery Charge | E34: =E33 -> 2149 | F34: 31.67626 | H34: 31.67626 | J34: 0 | L34: 0
C35: Transportation & Storage Charge | E35: =E34 -> 2149 | F35: 57.984318 | H35: 57.984318 | J35: 0 | L35: 0
C36: Federal Carbon Charge | E36: =E33 -> 2149 | F36: 84.0259 | H36: 84.0259 | J36: 0 | L36: 0
C37: Total Delivery | F37: =SUM(F27:F36) -> 1302.829168 | H37: =SUM(H27:H36) -> 1315.875608 | J37: =SUM(J27:J36) -> 13.04644056 | L37: =J37/F37 -> 0.01001393036
C39: Rate Riders | E39: Metric | F39: Current Rate | H39: Proposed Rate | J39: Change $ | L39: Change %
C40: Delay in Revenue Recovery Rate Rider | E40: =E33 -> 2149 | F40: =$E40*F24/100 -> 35.09317 | H40: =$E40*H24/100 -> 35.09317 | J40: =H40-F40 -> 0 | L40: =J40/F40 -> 0
C41: Total Rate Riders | F41: =F40 -> 35.09317 | H41: =H40 -> 35.09317 | J41: =J40 -> 0 | L41: =J41/F41 -> 0
C43: Total Bill Impact | F43: =F37+F41 -> 1337.922338 | H43: =H37+H41 -> 1350.968778 | J43: =J37+J41 -> 13.04644056 | L43: =J43/F43 -> 0.009751268956
C46: Rate 1 - New Residential | E46: Units | F46: Current Rate | H46: Proposed Rate
C48: Customer | E48: $/month | F48: =F12 -> 25 | H48: =H12 -> 25.375
C49: =OneDollar -> Bill 32 Rate | E49: $/month | F49: 1 | H49: 1
C50: First 100 m3 | E50: ₵/m3 | F50: 26.79480281 | H50: 27.19672486
C51: Next 400 m3 | E51: ₵/m3 | F51: 26.26699125 | H51: 26.66099612
C52: GT 500m3 | E52: ₵/m3 | F52: 25.49110826 | H52: 25.87347488
C53: Contracted Demand | E53: ₵ / contracted m3 | F53: 0 | H53: 0
C54: Gas Supply | E54: ₵/m3 | F54: 11.5114 | H54: 11.5114
C55: Upstream Recovery Charge | E55: ₵/m3 | F55: 1.474 | H55: 1.474
C56: Transportation & Storage Charge | E56: ₵/m3 | F56: 2.6982 | H56: 2.6982
C57: Federal Carbon Charge | E57: ₵/m3 | F57: 3.91 | H57: 3.91
C59: Rate Riders
C60: Delay in Revenue Recovery Rate Rider | E60: ₵/m3 | F60: =F24 -> 1.633 | H60: =H24 -> 1.633
C62: Delivery | E62: Metric | F62: Current Rate | H62: Proposed Rate | J62: Change $ | L62: Change %
C63: Customer | E63: 12 | F63: =F48*$E63 -> 300 | H63: =H48*$E63 -> 304.5 | J63: =H63-F63 -> 4.5 | L63: =J63/F63 -> 0.015
C64: =OneDollar -> Bill 32 Rate | E64: =E63 -> 12 | F64: =F49*$E64 -> 12 | H64: =H49*$E64 -> 12 | J64: =H64-F64 -> 0 | L64: =J64/F64 -> 0
C65: First 100 m3 | E65: 993.1296044 | F65: =F50*$E65/100 -> 266.1071192 | H65: =H50*$E65/100 -> 270.098726 | J65: =H65-F65 -> 3.991606788 | L65: =J65/F65 -> 0.015
C66: Next 400 m3 | E66: 1072.870396 | F66: 281.810773 | H66: 286.0379346 | J66: 4.227161595 | L66: 0.015
C67: GT 500m3 | E67: 0 | F67: 0 | H67: 0 | J67: 0
C68: Contracted Demand | E68: 0 | F68: 0 | H68: 0 | J68: 0
C69: Gas Supply | E69: =SUM(E65:E68) -> 2066 | F69: 237.825524 | H69: 237.825524 | J69: 0 | L69: 0
C70: Upstream Recovery Charge | E70: =E69 -> 2066 | F70: 30.45284 | H70: 30.45284 | J70: 0 | L70: 0
C71: Transportation & Storage Charge | E71: =E70 -> 2066 | F71: 55.744812 | H71: 55.744812 | J71: 0 | L71: 0
C72: Federal Carbon Charge | E72: =E69 -> 2066 | F72: 80.7806 | H72: 80.7806 | J72: 0 | L72: 0
C73: Total Delivery | F73: =SUM(F63:F72) -> 1264.721668 | H73: =SUM(H63:H72) -> 1277.440437 | J73: =SUM(J63:J72) -> 12.71876838 | L73: =J73/F73 -> 0.01005657506
C75: Rate Riders | E75: Metric | F75: Current Rate | H75: Proposed Rate | J75: Change $ | L75: Change %
C76: Delay in Revenue Recovery Rate Rider | E76: =E69 -> 2066 | F76: =$E76*F60/100 -> 33.73778 | H76: =$E76*H60/100 -> 33.73778 | J76: =H76-F76 -> 0 | L76: =J76/F76 -> 0
C77: Total Rate Riders | F77: =F76 -> 33.73778 | H77: =H76 -> 33.73778 | J77: =J76 -> 0 | L77: =J77/F77 -> 0
C79: Total Bill Impact | F79: =F73+F77 -> 1298.459448 | H79: =H73+H77 -> 1311.178217 | J79: =J73+J77 -> 12.71876838 | L79: =J79/F79 -> 0.009795275779
C81: Rate 1 - Small Commercial | E81: Units | F81: Current Rate | H81: Proposed Rate
C83: Customer | E83: $/month | F83: =F48 -> 25 | H83: =H48 -> 25.375
C84: =OneDollar -> Bill 32 Rate | E84: $/month | F84: 1 | H84: 1
C85: First 100 m3 | E85: ₵/m3 | F85: 26.79480281 | H85: 27.19672486
C86: Next 400 m3 | E86: ₵/m3 | F86: 26.26699125 | H86: 26.66099612
C87: GT 500m3 | E87: ₵/m3 | F87: 25.49110826 | H87: 25.87347488
C88: Contracted Demand | E88: ₵ / contracted m3 | F88: 0 | H88: 0
C89: Gas Supply | E89: ₵/m3 | F89: 11.5114 | H89: 11.5114
C90: Upstream Recovery Charge | E90: ₵/m3 | F90: 1.474 | H90: 1.474
C91: Transportation & Storage Charge | E91: ₵/m3 | F91: 2.6982 | H91: 2.6982
C92: Federal Carbon Charge | E92: ₵/m3 | F92: 3.91 | H92: 3.91
C94: Rate Riders
C95: Delay in Revenue Recovery Rate Rider | E95: ₵/m3 | F95: =F60 -> 1.633 | H95: =H60 -> 1.633
C97: Delivery | E97: Metric | F97: Current Rate | H97: Proposed Rate | J97: Change $ | L97: Change %
C98: Customer | E98: 12 | F98: =F83*$E98 -> 300 | H98: =H83*$E98 -> 304.5 | J98: =H98-F98 -> 4.5 | L98: =J98/F98 -> 0.015
C99: =OneDollar -> Bill 32 Rate | E99: =E98 -> 12 | F99: =F84*$E99 -> 12 | H99: =H84*$E99 -> 12 | J99: =H99-F99 -> 0 | L99: =J99/F99 -> 0
C100: First 100 m3 | E100: 1198.170987 | F100: =F85*$E100/100 -> 321.0475533 | H100: =H85*$E100/100 -> 325.8632666 | J100: =H100-F100 -> 4.815713299 | L100: =J100/F100 -> 0.015
C101: Next 400 m3 | E101: 2475.004093 | F101: 650.1091086 | H101: 659.8607452 | J101: 9.751636628 | L101: 0.015
C102: GT 500m3 | E102: 1019.82492 | F102: 259.9646745 | H102: 263.8641446 | J102: 3.899470118 | L102: 0.015
C103: Contracted Demand | E103: 0 | F103: 0 | H103: 0 | J103: 0
C104: Gas Supply | E104: =SUM(E100:E103) -> 4693 | F104: 540.230002 | H104: 540.230002 | J104: 0 | L104: 0
C105: Upstream Recovery Charge | E105: =E104 -> 4693 | F105: 69.17482 | H105: 69.17482 | J105: 0 | L105: 0
C106: Transportation & Storage Charge | E106: =E105 -> 4693 | F106: 126.626526 | H106: 126.626526 | J106: 0 | L106: 0
C107: Federal Carbon Charge | E107: =E104 -> 4693 | F107: 183.4963 | H107: 183.4963 | J107: 0 | L107: 0
C108: Total Delivery | F108: =SUM(F98:F107) -> 2462.648984 | H108: =SUM(H98:H107) -> 2485.615804 | J108: =SUM(J98:J107) -> 22.96682005 | L108: =J108/F108 -> 0.009326063191
C110: Rate Riders | E110: Metric | F110: Current Rate | H110: Proposed Rate | J110: Change $ | L110: Change %
C111: Delay in Revenue Recovery Rate Rider | E111: =E104 -> 4693 | F111: =$E111*F95/100 -> 76.63669 | H111: =$E111*H95/100 -> 76.63669 | J111: =H111-F111 -> 0 | L111: =J111/F111 -> 0
C112: Total Rate Riders | F112: =F111 -> 76.63669 | H112: =H111 -> 76.63669 | J112: =J111 -> 0 | L112: =J112/F112 -> 0
C114: Total Bill Impact | F114: =F108+F112 -> 2539.285674 | H114: =H108+H112 -> 2562.252494 | J114: =J108+J112 -> 22.96682005 | L114: =J114/F114 -> 0.009044598754
C116: Rate 1 - Small Agricultural | E116: Units | F116: Current Rate | H116: Proposed Rate
C118: Customer | E118: $/month | F118: =F83 -> 25 | H118: =H83 -> 25.375
C119: =OneDollar -> Bill 32 Rate | E119: $/month | F119: 1 | H119: 1
C120: First 100 m3 | E120: ₵/m3 | F120: =F85 -> 26.79480281 | H120: =H85 -> 27.19672486
C121: Next 400 m3 | E121: ₵/m3 | F121: 26.26699125 | H121: 26.66099612
C122: GT 500m3 | E122: ₵/m3 | F122: 25.49110826 | H122: 25.87347488
C123: Contracted Demand | E123: ₵ / contracted m3 | F123: 0 | H123: 0
C124: Gas Supply | E124: ₵/m3 | F124: 11.5114 | H124: 11.5114
C125: Upstream Recovery Charge | E125: ₵/m3 | F125: 1.474 | H125: 1.474
C126: Transportation & Storage Charge | E126: ₵/m3 | F126: 2.6982 | H126: 2.6982
C127: Federal Carbon Charge | E127: ₵/m3 | F127: 3.91 | H127: 3.91
C129: Rate Riders
C130: Delay in Revenue Recovery Rate Rider | E130: ₵/m3 | F130: =F95 -> 1.633 | H130: =H95 -> 1.633
C132: Delivery | E132: Metric | F132: Current Rate | H132: Proposed Rate | J132: Change $ | L132: Change %
C133: Customer | E133: 12 | F133: =F118*$E133 -> 300 | H133: =H118*$E133 -> 304.5 | J133: =H133-F133 -> 4.5 | L133: =J133/F133 -> 0.015
C134: =OneDollar -> Bill 32 Rate | E134: =E133 -> 12 | F134: =F119*$E134 -> 12 | H134: =H119*$E134 -> 12 | J134: =H134-F134 -> 0 | L134: =J134/F134 -> 0
C135: First 100 m3 | E135: 1198.735789 | F135: =F120*$E135/100 -> 321.1988909 | H135: =H120*$E135/100 -> 326.0168743 | J135: =H135-F135 -> 4.817983364 | L135: =J135/F135 -> 0.015
C136: Next 400 m3 | E136: 2484.065484 | F136: 652.4892635 | H136: 662.2766024 | J136: 9.787338952 | L136: 0.015
C137: GT 500m3 | E137: 1037.198727 | F137: 264.3934503 | H137: 268.359352 | J137: 3.965901754 | L137: 0.015
C138: Contracted Demand | E138: 0 | F138: 0 | H138: 0 | J138: 0
C139: Commodity | E139: =SUM(E135:E138) -> 4720 | F139: 543.33808 | H139: 543.33808 | J139: 0 | L139: 0
C140: Upstream Recovery Charge | E140: =E139 -> 4720 | F140: 69.5728 | H140: 69.5728 | J140: 0 | L140: 0
C141: Transportation & Storage Charge | E141: =E140 -> 4720 | F141: 127.35504 | H141: 127.35504 | J141: 0 | L141: 0
C142: Federal Carbon Charge | E142: =E139 -> 4720 | F142: 184.552 | H142: 184.552 | J142: 0 | L142: 0
C143: Total Delivery | F143: =SUM(F133:F142) -> 2474.899525 | H143: =SUM(H133:H142) -> 2497.970749 | J143: =SUM(J133:J142) -> 23.07122407 | L143: =J143/F143 -> 0.009322085135
C145: Rate Riders | E145: Metric | F145: Current Rate | H145: Proposed Rate | J145: Change $ | L145: Change %
C146: Delay in Revenue Recovery Rate Rider | E146: =E139 -> 4720 | F146: =$E146*F130/100 -> 77.0776 | H146: =$E146*H130/100 -> 77.0776 | J146: =H146-F146 -> 0 | L146: =J146/F146 -> 0
C147: Total Rate Riders | F147: =F146 -> 77.0776 | H147: =H146 -> 77.0776 | J147: =J146 -> 0 | L147: =J147/F147 -> 0
C149: Total Bill Impact | F149: =F143+F147 -> 2551.977125 | H149: =H143+H147 -> 2575.048349 | J149: =J143+J147 -> 23.07122407 | L149: =J149/F149 -> 0.00904052934

Sheet G1.2 Rate 6 Bill Impact
C2: ='A1.1 Distributor Information'!C3 -> Name of LDC: EPCOR Natural Gas Limited Partnership
C3: ='A1.1 Distributor Information'!C4 -> OEB Application Number: EB-2019-0264 Exhibit A - 2020 Custom Incentive Application
C5: Rate 6 Delivery Bill Impact
C6: G1.2 Rate 6 Bill Impact
C8: Rate 6 - Medium Commercial | E8: Units | F8: Current Rate | H8: Proposed Rate
C10: Customer | E10: $/month | F10: =INDEX('B1.1 Current Distribution Rates'!$E$10:$Q$13,2,COUNTA($C$10:C10)) -> 102 | H10: =INDEX('E1.1 Proposed Dist Rates '!$E$10:$Q$13,2,COUNTA($C$10:C10)) -> 103.53
C11: =OneDollar -> Bill 32 Rate | E11: $/month | F11: =INDEX('B1.1 Current Distribution Rates'!$E$10:$Q$13,2,COUNTA($C$10:C11)) -> 1 | H11: =INDEX('E1.1 Proposed Dist Rates '!$E$10:$Q$13,2,COUNTA($C$10:C11)) -> 1
C12: First 1000 m3 | E12: ₵/m3 | F12: =INDEX('B1.1 Current Distribution Rates'!$E$10:$Q$13,2,COUNTA($C$10:C12)) -> 24.7189 | H12: =INDEX('E1.1 Proposed Dist Rates '!$E$10:$Q$13,2,COUNTA($C$10:C12)) -> 25.0896835
C13: Next 6000 m3 | E13: ₵/m3 | F13: =INDEX('B1.1 Current Distribution Rates'!$E$10:$Q$13,2,COUNTA($C$10:C13)) -> 22.247 | H13: =INDEX('E1.1 Proposed Dist Rates '!$E$10:$Q$13,2,COUNTA($C$10:C13)) -> 22.580705
C14: GT 7000m3 | E14: ₵/m3 | F14: =INDEX('B1.1 Current Distribution Rates'!$E$10:$Q$13,2,COUNTA($C$10:C14)) -> 21.1346 | H14: =INDEX('E1.1 Proposed Dist Rates '!$E$10:$Q$13,2,COUNTA($C$10:C14)) -> 21.451619
C15: Contracted Demand | E15: ₵ / contracted m3 | F15: =INDEX('B1.1 Current Distribution Rates'!$E$10:$Q$13,2,COUNTA($C$10:C15)) -> 0 | H15: =INDEX('E1.1 Proposed Dist Rates '!$E$10:$Q$13,2,COUNTA($C$10:C15)) -> 0
C16: Gas Supply | E16: ₵/m3 | F16: =INDEX('B1.1 Current Distribution Rates'!$E$10:$Q$13,2,COUNTA($C$10:C16)) -> 11.5114 | H16: =INDEX('E1.1 Proposed Dist Rates '!$E$10:$Q$13,2,COUNTA($C$10:C16)) -> 11.5114
C17: Upstream Recovery Charge | E17: ₵/m3 | F17: =INDEX('B1.1 Current Distribution Rates'!$E$10:$Q$13,2,COUNTA($C$10:C17)) -> 2.92 | H17: =INDEX('E1.1 Proposed Dist Rates '!$E$10:$Q$13,2,COUNTA($C$10:C17)) -> 2.92
C18: Transportation & Storage Charge | E18: ₵/m3 | F18: =INDEX('B1.1 Current Distribution Rates'!$E$10:$Q$13,2,COUNTA($C$10:C18)) -> 5.6413 | H18: =INDEX('E1.1 Proposed Dist Rates '!$E$10:$Q$13,2,COUNTA($C$10:C18)) -> 5.6413
C19: Federal Carbon Charge | E19: ₵/m3 | F19: ='B1.1 Current Distribution Rates'!Q11 -> 3.91 | H19: ='E1.1 Proposed Dist Rates '!Q11 -> 3.91
C21: Rate Riders
C22: Delay in Revenue Recovery Rate Rider | E22: ₵/m3 | F22: ='C1.1 Current Rate Riders'!E11 -> 0.909 | H22: ='F1.3 Rate Riders'!E9 -> 0.909
C24: Delivery | E24: Metric | F24: Current Rate | H24: Proposed Rate | J24: Change $ | L24: Change %
C25: Customer | E25: 12 | F25: =F10*$E25 -> 1224 | H25: =H10*$E25 -> 1242.36 | J25: =H25-F25 -> 18.36 | L25: =J25/F25 -> 0.015
C26: =OneDollar -> Bill 32 Rate | E26: =E25 -> 12 | F26: =E26*F11 -> 12 | H26: =E26*H11 -> 12 | J26: 0 | L26: 0
C27: First 1000 m3 | E27: 9831.543338 | F27: =F12*$E27/100 -> 2430.249366 | H27: =H12*$E27/100 -> 2466.703107 | J27: 36.45374049 | L27: 0.015
C28: Next 6000 m3 | E28: 17101.45666 | F28: 3804.561064 | H28: 3861.62948 | J28: 57.06841595 | L28: 0.015
C29: GT 7000m3 | E29: 0 | F29: 0 | H29: 0 | J29: 0
C30: Contracted Demand | E30: 0 | F30: 0 | H30: 0 | J30: 0
C31: Gas Supply | E31: =SUM(E27:E30) -> 26933 | F31: 3100.365362 | H31: 3100.365362 | J31: 0 | L31: 0
C32: Upstream Recovery Charge | E32: =E31 -> 26933 | F32: 786.4436 | H32: 786.4436 | J32: 0 | L32: 0
C33: Transportation & Storage Charge | E33: =E32 -> 26933 | F33: 1519.371329 | H33: 1519.371329 | J33: 0 | L33: 0
C34: Federal Carbon Charge | E34: =E33 -> 26933 | F34: 1053.0803 | H34: 1053.0803 | J34: 0 | L34: 0
C35: Total Delivery | F35: =SUM(F25:F34) -> 13930.07102 | H35: =SUM(H25:H34) -> 14041.95318 | J35: =SUM(J25:J34) -> 111.8821564 | L35: 0.008031700361
C37: Rate Riders | E37: Metric | F37: Current Rate | H37: Proposed Rate | J37: Change $ | L37: Change %
C38: Delay in Revenue Recovery Rate Rider | E38: =E31 -> 26933 | F38: =$E38*F22/100 -> 244.82097 | H38: =$E38*H22/100 -> 244.82097 | J38: =H38-F38 -> 0 | L38: =J38/F38 -> 0
C39: Total Rate Riders | F39: =F38 -> 244.82097 | H39: =H38 -> 244.82097 | J39: =J38 -> 0 | L39: =J39/F39 -> 0
C41: Total Bill Impact | F41: =F35+F39 -> 14174.89199 | H41: =H35+H39 -> 14286.77415 | J41: =J35+J39 -> 111.8821564 | L41: =J41/F41 -> 0.007892981232
C44: Rate 6 - Medium Commercial | E44: Units | F44: Current Rate | H44: Proposed Rate
C46: Customer | E46: $/month | F46: =F10 -> 102 | H46: =H10 -> 103.53
C47: =OneDollar -> Bill 32 Rate | E47: $/month | F47: 1 | H47: 1
C48: First 1000 m3 | E48: ₵/m3 | F48: 24.7189 | H48: 25.0896835
C49: Next 6000 m3 | E49: ₵/m3 | F49: 22.247 | H49: 22.580705
C50: GT 7000m3 | E50: ₵/m3 | F50: 21.1346 | H50: 21.451619
C51: Contracted Demand | E51: ₵ / contracted m3 | F51: 0 | H51: 0
C52: Gas Supply | E52: ₵/m3 | F52: 11.5114 | H52: 11.5114
C53: Upstream Recovery Charge | E53: ₵/m3 | F53: 2.92 | H53: 2.92
C54: Transportation & Storage Charge | E54: ₵/m3 | F54: 5.6413 | H54: 5.6413
C55: Federal Carbon Charge | E55: ₵/m3 | F55: 3.91 | H55: 3.91
C57: Rate Riders
C58: Delay in Revenue Recovery Rate Rider | E58: ₵/m3 | F58: =F22 -> 0.909 | H58: =H22 -> 0.909
C60: Delivery | E60: Metric | F60: Current Rate | H60: Proposed Rate | J60: Change $ | L60: Change %
C61: Customer | E61: 12 | F61: =F46*$E61 -> 1224 | H61: =H46*$E61 -> 1242.36 | J61: =H61-F61 -> 18.36 | L61: =J61/F61 -> 0.015
C62: =OneDollar -> Bill 32 Rate | E62: 12 | F62: =E62*F47 -> 12 | H62: =E62*H47 -> 12 | J62: =H62-F62 -> 0 | L62: =J62/F62 -> 0
C63: First 1000 m3 | E63: 11715.32619 | F63: =F48*$E63/100 -> 2895.899765 | H63: =H48*$E63/100 -> 2939.338261 | J63: =H63-F63 -> 43.43849647 | L63: =J63/F63 -> 0.015
C64: Next 6000 m3 | E64: 40792.71842 | F64: 9075.156067 | H64: 9211.283408 | J64: 136.127341 | L64: 0.015
C65: GT 7000m3 | E65: 23176.95539 | F65: 4898.356815 | H65: 4971.832167 | J65: 73.47535222 | L65: 0.015
C66: Contracted Demand | E66: 0 | F66: 0 | H66: 0 | J66: 0
C67: Gas Supply | E67: =SUM(E63:E66) -> 75685 | F67: 8712.40309 | H67: 8712.40309 | J67: 0 | L67: 0
C68: Upstream Recovery Charge | E68: =E67 -> 75685 | F68: 2210.002 | H68: 2210.002 | J68: 0 | L68: 0
C69: Transportation & Storage Charge | E69: =E68 -> 75685 | F69: 4269.617905 | H69: 4269.617905 | J69: 0 | L69: 0
C70: Federal Carbon Charge | E70: =E69 -> 75685 | F70: 2959.2835 | H70: 2959.2835 | J70: 0 | L70: 0
C71: Total Delivery | F71: =SUM(F61:F70) -> 36256.71914 | H71: =SUM(H61:H70) -> 36528.12033 | J71: =SUM(J61:J70) -> 271.4011897 | L71: =J71/F71 -> 0.007485541884
C73: Rate Riders | E73: Metric | F73: Current Rate | H73: Proposed Rate | J73: Change $ | L73: Change %
C74: Delay in Revenue Recovery Rate Rider | E74: =E67 -> 75685 | F74: =$E74*F58/100 -> 687.97665 | H74: =$E74*H58/100 -> 687.97665 | J74: =H74-F74 -> 0 | L74: =J74/F74 -> 0
C75: Total Rate Riders | F75: =F74 -> 687.97665 | H75: =H74 -> 687.97665 | J75: =J74 -> 0 | L75: =J75/F75 -> 0
C77: Total Bill Impact | F77: =F71+F75 -> 36944.69579 | H77: =H71+H75 -> 37216.09698 | J77: =J71+J75 -> 271.4011897 | L77: =J77/F77 -> 0.007346147637

Sheet G1.3 Rate 11 Bill Impact
C2: ='A1.1 Distributor Information'!C3 -> Name of LDC: EPCOR Natural Gas Limited Partnership
C3: ='A1.1 Distributor Information'!C4 -> OEB Application Number: EB-2019-0264 Exhibit A - 2020 Custom Incentive Application
C5: Rate 11 Delivery Bill Impact
C6: =MID(CELL("filename",A1),FIND("]",CELL("filename",A1))+1,255) -> G1.3 Rate 11 Bill Impact
C8: Rate 11 - Large Seasonal Service Sample Dryer 1 | E8: Units | F8: Current Rate | H8: Proposed Rate
C10: Customer | E10: $/month | F10: =INDEX('B1.1 Current Distribution Rates'!$E$10:$Q$13,3,COUNTA($C10:C$10)) -> 204 | H10: =INDEX('E1.1 Proposed Dist Rates '!$E$10:$Q$13,3,COUNTA($C10:C$10)) -> 207.06
C11: =OneDollar -> Bill 32 Rate | E11: $/month | F11: =INDEX('B1.1 Current Distribution Rates'!$E$10:$Q$13,3,COUNTA($C$10:C11)) -> 1 | H11: =INDEX('E1.1 Proposed Dist Rates '!$E$10:$Q$13,3,COUNTA($C$10:C11)) -> 1
C12: All Volumes | E12: ₵/m3 | F12: =INDEX('B1.1 Current Distribution Rates'!$E$10:$Q$13,3,COUNTA($C$10:C12)) -> 15.3546 | H12: =INDEX('E1.1 Proposed Dist Rates '!$E$10:$Q$13,3,COUNTA($C$10:C12)) -> 15.584919
C13: Tier 2 | E13: ₵/m3 | F13: =INDEX('B1.1 Current Distribution Rates'!$E$10:$Q$13,3,COUNTA($C$10:C13)) -> 15.3546 | H13: =INDEX('E1.1 Proposed Dist Rates '!$E$10:$Q$13,3,COUNTA($C$10:C13)) -> 15.584919
C14: Tier 3 | E14: ₵/m3 | F14: =INDEX('B1.1 Current Distribution Rates'!$E$10:$Q$13,3,COUNTA($C$10:C14)) -> 15.3546 | H14: =INDEX('E1.1 Proposed Dist Rates '!$E$10:$Q$13,3,COUNTA($C$10:C14)) -> 15.584919
C15: Contracted Demand | E15: ₵ / contracted m3 | F15: =INDEX('B1.1 Current Distribution Rates'!$E$10:$Q$13,3,COUNTA($C$10:C15)) -> 0 | H15: =INDEX('E1.1 Proposed Dist Rates '!$E$10:$Q$13,3,COUNTA($C$10:C15)) -> 0
C16: Gas Supply | E16: ₵/m3 | F16: =INDEX('B1.1 Current Distribution Rates'!$E$10:$Q$13,3,COUNTA($C$10:C16)) -> 11.5114 | H16: =INDEX('E1.1 Proposed Dist Rates '!$E$10:$Q$13,3,COUNTA($C$10:C16)) -> 11.5114
C17: Upstream Recovery Charge | E17: ₵/m3 | F17: =INDEX('B1.1 Current Distribution Rates'!$E$10:$Q$13,3,COUNTA($C$10:C17)) -> 0.0352 | H17: =INDEX('E1.1 Proposed Dist Rates '!$E$10:$Q$13,3,COUNTA($C$10:C17)) -> 0.0352
C18: Transportation & Storage Charge | E18: ₵/m3 | F18: =INDEX('B1.1 Current Distribution Rates'!$E$10:$Q$13,3,COUNTA($C$10:C18)) -> 1.8166 | H18: =INDEX('E1.1 Proposed Dist Rates '!$E$10:$Q$13,3,COUNTA($C$10:C18)) -> 1.8166
C19: Federal Carbon Charge | E19: ₵/m3 | F19: ='B1.1 Current Distribution Rates'!Q12 -> 3.91 | H19: ='E1.1 Proposed Dist Rates '!Q12 -> 3.91
C21: Rate Riders
C22: Delay in Revenue Recovery Rate Rider | E22: ₵/m3 | F22: ='C1.1 Current Rate Riders'!E12 -> 0.5524 | H22: ='F1.3 Rate Riders'!E10 -> 0.5524
C24: Delivery | E24: Metric | F24: Current Rate | H24: Proposed Rate | J24: Change $ | L24: Change %
C25: Customer | E25: 12 | F25: =F10*$E25 -> 2448 | H25: =H10*$E25 -> 2484.72 | J25: =H25-F25 -> 36.72 | L25: =J25/F25 -> 0.015
C26: =OneDollar -> Bill 32 Rate | E26: 12 | F26: =$E26*F11 -> 12 | H26: =$E26*H11 -> 12 | J26: 0 | L26: 0
C27: All Volumes | E27: 101499.4857 | F27: =F12*$E27/100 -> 15584.84004 | H27: =H12*$E27/100 -> 15818.61264 | J27: 233.7726006 | L27: 0.015
C28: Tier 2 | E28: 0 | F28: 0 | H28: 0 | J28: 0
C29: Tier 3 | E29: 0 | F29: 0 | H29: 0 | J29: 0
C30: Contracted Demand | E30: 0 | F30: 0 | H30: 0 | J30: 0
C31: Gas Supply | E31: =SUM(E27:E30) -> 101499.4857 | F31: 11684.0118 | H31: 11684.0118 | J31: 0 | L31: 0
C32: Upstream Recovery Charge | E32: =E31 -> 101499.4857 | F32: 35.72781898 | H32: 35.72781898 | J32: 0 | L32: 0
C33: Transportation & Storage Charge | E33: =E32 -> 101499.4857 | F33: 1843.839658 | H33: 1843.839658 | J33: 0 | L33: 0
C34: Federal Carbon Charge | E34: =E33 -> 101499.4857 | F34: =$E34*F19/100 -> 3968.629892 | H34: =$E34*H19/100 -> 3968.629892 | J34: 0 | L34: 0
C35: Total Delivery | F35: =SUM(F25:F34) -> 35577.04921 | H35: =SUM(H25:H34) -> 35847.54181 | J35: =SUM(J25:J34) -> 270.4926006 | L35: 0.007603008304
C37: Rate Riders | E37: Metric | F37: Current Rate | H37: Proposed Rate | J37: Change $ | L37: Change %
C38: Delay in Revenue Recovery Rate Rider | E38: =E31 -> 101499.4857 | F38: =$E38*F22/100 -> 560.6831592 | H38: =$E38*H22/100 -> 560.6831592 | J38: =H38-F38 -> 0 | L38: =J38/F38 -> 0
C39: Total Rate Riders | F39: =F38 -> 560.6831592 | H39: =H38 -> 560.6831592 | J39: =J38 -> 0 | L39: =J39/F39 -> 0
C41: Total Bill Impact | F41: =F35+F39 -> 36137.73237 | H41: =H35+H39 -> 36408.22497 | J41: =J35+J39 -> 270.4926006 | L41: =J41/F41 -> 0.007485046317
C43: Rate 11 - Large Seasonal Service Sample Dryer 2 | E43: Units | F43: Current Rate | H43: Proposed Rate
C45: Customer | E45: $/month | F45: =F10 -> 204 | H45: =H10 -> 207.06
C46: =OneDollar -> Bill 32 Rate | E46: $/month | F46: 1 | H46: 1
C47: All Volumes | E47: ₵/m3 | F47: =F12 -> 15.3546 | H47: =H12 -> 15.584919
C48: Tier 2 | E48: ₵/m3 | F48: 15.3546 | H48: 15.584919
C49: Tier 3 | E49: ₵/m3 | F49: 15.3546 | H49: 15.584919
C50: Contracted Demand | E50: ₵ / contracted m3 | F50: 0 | H50: 0
C51: Gas Supply | E51: ₵/m3 | F51: 11.5114 | H51: 11.5114
C52: Upstream Recovery Charge | E52: ₵/m3 | F52: 0.0352 | H52: 0.0352
C53: Transportation & Storage Charge | E53: ₵/m3 | F53: 1.8166 | H53: 1.8166
C54: Federal Carbon Charge | E54: ₵/m3 | F54: 3.91 | H54: 3.91
C56: Rate Riders
C57: Delay in Revenue Recovery Rate Rider | E57: ₵/m3 | F57: =F22 -> 0.5524 | H57: =H22 -> 0.5524
C59: Delivery | E59: Metric | F59: Current Rate | H59: Proposed Rate | J59: Change $ | L59: Change %
C60: Customer | E60: 12 | F60: =F45*$E60 -> 2448 | H60: =H45*$E60 -> 2484.72 | J60: =H60-F60 -> 36.72 | L60: =J60/F60 -> 0.015
C61: =OneDollar -> Bill 32 Rate | E61: 12 | F61: =$E61*F46 -> 12 | H61: =$E61*H46 -> 12 | J61: =H61-F61 -> 0 | L61: =J61/F61 -> 0
C62: All Volumes | E62: 338331.6191 | F62: =F47*$E62/100 -> 51949.46679 | H62: =H47*$E62/100 -> 52728.70879 | J62: =H62-F62 -> 779.2420018 | L62: =J62/F62 -> 0.015
C63: Tier 2 | E63: 0 | F63: 0 | H63: 0 | J63: 0
C64: Tier 3 | E64: 0 | F64: 0 | H64: 0 | J64: 0
C65: Contracted Demand | E65: 0 | F65: 0 | H65: 0 | J65: 0
C66: Gas Supply | E66: =SUM(E62:E65) -> 338331.6191 | F66: 38946.706 | H66: 38946.706 | J66: 0 | L66: 0
C67: Upstream Recovery Charge | E67: =E66 -> 338331.6191 | F67: 119.0927299 | H67: 119.0927299 | J67: 0 | L67: 0
C68: Transportation & Storage Charge | E68: =E67 -> 338331.6191 | F68: 6146.132193 | H68: 6146.132193 | J68: 0 | L68: 0
C69: Federal Carbon Charge | E69: =E68 -> 338331.6191 | F69: =$E69*F54/100 -> 13228.76631 | H69: =$E69*H54/100 -> 13228.76631 | J69: 0 | L69: 0
C70: Total Delivery | F70: =SUM(F60:F69) -> 112850.164 | H70: =SUM(H60:H69) -> 113666.126 | J70: =SUM(J60:J69) -> 815.9620018 | L70: =J70/F70 -> 0.007230490172
C72: Rate Riders | E72: Metric | F72: Current Rate | H72: Proposed Rate | J72: Change $ | L72: Change %
C73: Delay in Revenue Recovery Rate Rider | E73: =E66 -> 338331.6191 | F73: =$E73*F57/100 -> 1868.943864 | H73: =$E73*H57/100 -> 1868.943864 | J73: =H73-F73 -> 0 | L73: =J73/F73 -> 0
C74: Total Rate Riders | F74: =F73 -> 1868.943864 | H74: =H73 -> 1868.943864 | J74: =J73 -> 0 | L74: =J74/F74 -> 0
C76: Total Bill Impact | F76: =F70+F74 -> 114719.1079 | H76: =H70+H74 -> 115535.0699 | J76: =J70+J74 -> 815.9620018 | L76: =J76/F76 -> 0.007112694797

Sheet G1.4 Rate 16 Bill Impact
C2: ='A1.1 Distributor Information'!C3 -> Name of LDC: EPCOR Natural Gas Limited Partnership
C3: ='A1.1 Distributor Information'!C4 -> OEB Application Number: EB-2019-0264 Exhibit A - 2020 Custom Incentive Application
C5: Rate 16 Delivery Bill Impact
C6: =MID(CELL("filename",A1),FIND("]",CELL("filename",A1))+1,255) -> G1.4 Rate 16 Bill Impact
C8: Rate 16 - Contracted Demand | E8: Units | F8: Current Rate | H8: Proposed Rate
C10: Customer | E10: $/month | F10: =INDEX('B1.1 Current Distribution Rates'!$E$10:$Q$13,4,COUNTA($C$10:C10)) -> 1500 | H10: =INDEX('E1.1 Proposed Dist Rates '!$E$10:$Q$13,4,COUNTA($C$10:C10)) -> 1522.5
C11: =OneDollar -> Bill 32 Rate | E11: $/month | F11: =INDEX('B1.1 Current Distribution Rates'!$E$10:$Q$13,4,COUNTA($C$10:C11)) -> 1 | H11: =INDEX('E1.1 Proposed Dist Rates '!$E$10:$Q$13,4,COUNTA($C$10:C11)) -> 1
C12: Tier 1 | E12: ₵/m3 | F12: =INDEX('B1.1 Current Distribution Rates'!$E$10:$Q$13,4,COUNTA($C$10:C12)) -> 0 | H12: =INDEX('E1.1 Proposed Dist Rates '!$E$10:$Q$13,4,COUNTA($C$10:C12)) -> 0
C13: Tier 2 | E13: ₵/m3 | F13: =INDEX('B1.1 Current Distribution Rates'!$E$10:$Q$13,4,COUNTA($C$10:C13)) -> 0 | H13: =INDEX('E1.1 Proposed Dist Rates '!$E$10:$Q$13,4,COUNTA($C$10:C13)) -> 0
C14: Tier 3 | E14: ₵/m3 | F14: =INDEX('B1.1 Current Distribution Rates'!$E$10:$Q$13,4,COUNTA($C$10:C14)) -> 0 | H14: =INDEX('E1.1 Proposed Dist Rates '!$E$10:$Q$13,4,COUNTA($C$10:C14)) -> 0
C15: Contracted Demand | E15: ₵ / contracted m3 | F15: =INDEX('B1.1 Current Distribution Rates'!$E$10:$Q$13,4,COUNTA($C$10:C15)) -> 102.3139 | H15: =INDEX('E1.1 Proposed Dist Rates '!$E$10:$Q$13,4,COUNTA($C$10:C15)) -> 103.8486085
C16: Gas Supply | E16: ₵/m3 | F16: =INDEX('B1.1 Current Distribution Rates'!$E$10:$Q$13,4,COUNTA($C$10:C16)) -> 0 | H16: =INDEX('E1.1 Proposed Dist Rates '!$E$10:$Q$13,4,COUNTA($C$10:C16)) -> 0
C17: Upstream Recovery Charge | E17: ₵ / contracted m3 | F17: =INDEX('B1.1 Current Distribution Rates'!$E$10:$Q$13,4,COUNTA($C$10:C17)) -> 14.2434 | H17: =INDEX('E1.1 Proposed Dist Rates '!$E$10:$Q$13,4,COUNTA($C$10:C17)) -> 14.2434
C18: Transportation Charge From Dawn | E18: ₵ / contracted m3 | F18: =INDEX('B1.1 Current Distribution Rates'!$E$10:$Q$13,4,COUNTA($C$10:C18)+1) -> 18.2999 | H18: =INDEX('E1.1 Proposed Dist Rates '!$E$10:$Q$13,4,COUNTA($C$10:C18)+1) -> 18.2999
C19: Transportation Charge From Kirkwall | E19: ₵ / contracted m3 | F19: =INDEX('B1.1 Current Distribution Rates'!$E$10:$Q$13,4,COUNTA($C$10:C19)+1) -> 11.848 | H19: =INDEX('E1.1 Proposed Dist Rates '!$E$10:$Q$13,4,COUNTA($C$10:C19)+1) -> 11.848
C20: Transportation Charge From Parkway | E20: ₵ / contracted m3 | F20: =INDEX('B1.1 Current Distribution Rates'!$E$10:$Q$13,4,COUNTA($C$10:C20)+1) -> 11.848 | H20: =INDEX('E1.1 Proposed Dist Rates '!$E$10:$Q$13,4,COUNTA($C$10:C20)+1) -> 11.848
C21: Federal Carbon Charge | E21: ₵/m3 | F21: =INDEX('B1.1 Current Distribution Rates'!$E$10:$Q$13,4,COUNTA($C$10:C21)+1) -> 3.91 | H21: =INDEX('E1.1 Proposed Dist Rates '!$E$10:$Q$13,4,COUNTA($C$10:C21)+1) -> 3.91
C23: Rate Riders
C24: Delay in Revenue Recovery Rate Rider | E24: ₵ / contracted m3 | F24: ='C1.1 Current Rate Riders'!E13 -> 0.0601 | H24: ='F1.3 Rate Riders'!E11 -> 0.0601
C26: Delivery | E26: Metric | F26: Current Rate | H26: Proposed Rate | J26: Change $ | L26: Change %
C27: Customer | E27: 12 | F27: =F10*$E27 -> 18000 | H27: =H10*$E27 -> 18270 | J27: =H27-F27 -> 270 | L27: =J27/F27 -> 0.015
C28: =OneDollar -> Bill 32 Rate | E28: =E27 -> 12 | F28: =$E28*F11 -> 12 | H28: =$E28*H11 -> 12 | J28: 0 | L28: 0
C29: Tier 1 | E29: 0 | F29: =F12*$E29/100 -> 0 | H29: =H12*$E29/100 -> 0 | J29: 0
C30: Tier 2 | E30: 0 | F30: =F13*$E30/100 -> 0 | H30: =H13*$E30/100 -> 0 | J30: 0
C31: Tier 3 | E31: 0 | F31: =F14*$E31/100 -> 0 | H31: =H14*$E31/100 -> 0 | J31: 0
C32: Contracted Demand | E32: 50000 | F32: =F15*$E32/100*$E$27 -> 613883.4 | H32: =H15*$E32/100*$E$27 -> 623091.651 | J32: 9208.251 | L32: 0.015
C33: Gas Supply | E33: 0 | F33: =F16*$E33/100 -> 0 | H33: =H16*$E33/100 -> 0 | J33: 0
C34: Upstream Recovery Charge | E34: =$E$32 -> 50000 | F34: =F17*$E34/100*$E$27 -> 85460.4 | H34: =H17*$E34/100*$E$27 -> 85460.4 | J34: 0 | L34: 0
C35: Transportation Charge From Dawn | E35: =$E$32 -> 50000 | F35: =F18*$E35/100*$E$27 -> 109799.4 | H35: =H18*$E35/100*$E$27 -> 109799.4 | J35: 0 | L35: 0
C36: Transportation Charge From Kirkwall | E36: 0 | F36: =F19*$E36/100*$E$27 -> 0 | H36: =H19*$E36/100*$E$27 -> 0 | J36: 0
C37: Transportation Charge From Parkway | E37: 0 | F37: =F20*$E37/100*$E$27 -> 0 | H37: =H20*$E37/100*$E$27 -> 0 | J37: 0
C38: Federal Carbon Charge | E38: =$E$32 -> 50000 | F38: =$E38*F21/100*$E$27 -> 23460 | H38: =$E38*H21/100*$E$27 -> 23460 | J38: 0 | L38: 0
C39: Total Delivery | F39: =SUM(F27:F38) -> 850615.2 | H39: =SUM(H27:H38) -> 860093.451 | J39: =SUM(J27:J38) -> 9478.251 | L39: 0.01114281875
C41: Rate Riders | E41: Metric | F41: Current Rate | H41: Proposed Rate | J41: Change $ | L41: Change %
C42: Delay in Revenue Recovery Rate Rider | E42: =E27 -> 12 | F42: =$E$42*$E32*$F24/100 -> 360.6 | H42: =$E$42*$E32*$H24/100 -> 360.6 | J42: =H42-F42 -> 0 | L42: =J42/F42 -> 0
C43: Total Rate Riders | F43: =F42 -> 360.6 | H43: =H42 -> 360.6 | J43: =J42 -> 0 | L43: =J43/F43 -> 0
C45: Total Bill Impact | F45: =F39+F43 -> 850975.8 | H45: =H39+H43 -> 860454.051 | J45: =J39+J43 -> 9478.251 | L45: =J45/F45 -> 0.01113809699

Sheet G1.7 Summary of Bill Impacts
C2: ='A1.1 Distributor Information'!C3 -> Name of LDC: EPCOR Natural Gas Limited Partnership
C3: ='A1.1 Distributor Information'!C4 -> OEB Application Number: EB-2019-0264 Exhibit A - 2020 Custom Incentive Application
C5: Summary of Bill Impacts
C7: =MID(CELL("filename",A1),FIND("]",CELL("filename",A1))+1,255) -> G1.7 Summary of Bill Impacts
C8: Rate Class | E8: Fixed Change | F8: =OneDollar -> Bill 32 Rate | G8: Volumetric Change | H8: Rate Rider | I8: Upstream Recovery Charge | J8: Transportation & Storage Charge | K8: Federal Carbon Charge Change | L8: Total Change | M8: Total Change %
E9: ($/year) | F9: ($/year) | G9: ($/year) | H9: ($/year) | I9: ($/year) | J9: ($/year) | K9: ($/year) | L9: ($/year)
C10: Rate 1 | D10: Existing Residential | E10: ='G1.1 Rate 1 Bill Impact'!J27 -> 4.5 | F10: ='G1.1 Rate 1 Bill Impact'!J28 -> 0 | G10: =SUM('G1.1 Rate 1 Bill Impact'!J29:J32) -> 8.546440559 | H10: ='G1.1 Rate 1 Bill Impact'!J41 -> 0 | I10: ='G1.1 Rate 1 Bill Impact'!J34 -> 0 | J10: ='G1.1 Rate 1 Bill Impact'!J35 -> 0 | K10: ='G1.1 Rate 1 Bill Impact'!J36 -> 0 | L10: =SUM(E10:K10) -> 13.04644056 | M10: ='G1.1 Rate 1 Bill Impact'!L43 -> 0.009751268956
C11: Rate 1 | D11: New Residential | E11: ='G1.1 Rate 1 Bill Impact'!J63 -> 4.5 | F11: ='G1.1 Rate 1 Bill Impact'!J64 -> 0 | G11: =SUM('G1.1 Rate 1 Bill Impact'!J65:J66) -> 8.218768382 | H11: ='G1.1 Rate 1 Bill Impact'!J77 -> 0 | I11: ='G1.1 Rate 1 Bill Impact'!J70 -> 0 | J11: ='G1.1 Rate 1 Bill Impact'!J71 -> 0 | K11: ='G1.1 Rate 1 Bill Impact'!J72 -> 0 | L11: =SUM(E11:K11) -> 12.71876838 | M11: ='G1.1 Rate 1 Bill Impact'!L79 -> 0.009795275779
C12: Rate 1 | D12: Small Commercial | E12: ='G1.1 Rate 1 Bill Impact'!J98 -> 4.5 | F12: ='G1.1 Rate 1 Bill Impact'!J99 -> 0 | G12: =SUM('G1.1 Rate 1 Bill Impact'!J100:J103) -> 18.46682005 | H12: ='G1.1 Rate 1 Bill Impact'!J112 -> 0 | I12: ='G1.1 Rate 1 Bill Impact'!J105 -> 0 | J12: ='G1.1 Rate 1 Bill Impact'!J106 -> 0 | K12: ='G1.1 Rate 1 Bill Impact'!J107 -> 0 | L12: 22.96682005 | M12: ='G1.1 Rate 1 Bill Impact'!L114 -> 0.009044598754
C13: Rate 1 | D13: Small Agricultural | E13: ='G1.1 Rate 1 Bill Impact'!J133 -> 4.5 | F13: ='G1.1 Rate 1 Bill Impact'!J134 -> 0 | G13: =SUM('G1.1 Rate 1 Bill Impact'!J135:J138) -> 18.57122407 | H13: ='G1.1 Rate 1 Bill Impact'!J147 -> 0 | I13: ='G1.1 Rate 1 Bill Impact'!J140 -> 0 | J13: ='G1.1 Rate 1 Bill Impact'!J141 -> 0 | K13: ='G1.1 Rate 1 Bill Impact'!J142 -> 0 | L13: 23.07122407 | M13: ='G1.1 Rate 1 Bill Impact'!L149 -> 0.00904052934
C14: Rate 6 | D14: Medium Commercial | E14: ='G1.2 Rate 6 Bill Impact'!J25 -> 18.36 | F14: ='G1.2 Rate 6 Bill Impact'!J26 -> 0 | G14: =SUM('G1.2 Rate 6 Bill Impact'!J27:J30) -> 93.52215645 | H14: ='G1.2 Rate 6 Bill Impact'!J39 -> 0 | I14: ='G1.2 Rate 6 Bill Impact'!J32 -> 0 | J14: ='G1.2 Rate 6 Bill Impact'!J33 -> 0 | K14: ='G1.2 Rate 6 Bill Impact'!J34 -> 0 | L14: 111.8821564 | M14: ='G1.2 Rate 6 Bill Impact'!L41 -> 0.007892981232
C15: Rate 6 | D15: Large Commercial | E15: ='G1.2 Rate 6 Bill Impact'!J61 -> 18.36 | F15: ='G1.2 Rate 6 Bill Impact'!J62 -> 0 | G15: =SUM('G1.2 Rate 6 Bill Impact'!J63:J66) -> 253.0411897 | H15: ='G1.2 Rate 6 Bill Impact'!J75 -> 0 | I15: ='G1.2 Rate 6 Bill Impact'!J68 -> 0 | J15: ='G1.2 Rate 6 Bill Impact'!J69 -> 0 | K15: ='G1.2 Rate 6 Bill Impact'!J70 -> 0 | L15: 271.4011897 | M15: ='G1.2 Rate 6 Bill Impact'!L77 -> 0.007346147637
C16: Rate 11 | D16: Sample Dryer 1 | E16: ='G1.3 Rate 11 Bill Impact'!J25 -> 36.72 | F16: ='G1.3 Rate 11 Bill Impact'!J26 -> 0 | G16: =SUM('G1.3 Rate 11 Bill Impact'!J27:J30) -> 233.7726006 | H16: ='G1.3 Rate 11 Bill Impact'!J39 -> 0 | I16: ='G1.3 Rate 11 Bill Impact'!J32 -> 0 | J16: ='G1.3 Rate 11 Bill Impact'!J33 -> 0 | K16: ='G1.3 Rate 11 Bill Impact'!J34 -> 0 | L16: 270.4926006 | M16: ='G1.3 Rate 11 Bill Impact'!L41 -> 0.007485046317
C17: Rate 11 | D17: Sample Dryer 2 | E17: ='G1.3 Rate 11 Bill Impact'!J60 -> 36.72 | F17: ='G1.3 Rate 11 Bill Impact'!J61 -> 0 | G17: =SUM('G1.3 Rate 11 Bill Impact'!J62:J65) -> 779.2420018 | H17: ='G1.3 Rate 11 Bill Impact'!J74 -> 0 | I17: ='G1.3 Rate 11 Bill Impact'!J67 -> 0 | J17: ='G1.3 Rate 11 Bill Impact'!J68 -> 0 | K17: ='G1.3 Rate 11 Bill Impact'!J69 -> 0 | L17: 815.9620018 | M17: ='G1.3 Rate 11 Bill Impact'!L76 -> 0.007112694797
C18: Rate 16 | D18: Contracted Demand | E18: ='G1.4 Rate 16 Bill Impact'!J27 -> 270 | F18: ='G1.4 Rate 16 Bill Impact'!J28 -> 0 | G18: =SUM('G1.4 Rate 16 Bill Impact'!J29:J32) -> 9208.251 | H18: ='G1.4 Rate 16 Bill Impact'!J43 -> 0 | I18: ='G1.4 Rate 16 Bill Impact'!J34 -> 0 | J18: =SUM('G1.4 Rate 16 Bill Impact'!J35:J37) -> 0 | K18: ='G1.4 Rate 16 Bill Impact'!J38 -> 0 | L18: 9478.251 | M18: ='G1.4 Rate 16 Bill Impact'!L45 -> 0.01113809699
